{"text_format":"1","workbook":"xlsx","n_sheets":12,"sheets":["Intro","Nom","Table","Transpose","TableSimpleEntrée","TableDoubleEntrée","Dates","Actuariat","Pret","FR-UK","lexique","Raccourcis"],"not_rendered":{"charts":1,"images":1,"macros":1,"external_links":1,"defined_names":44,"comments":0,"pivot_tables":0},"unopened":[],"bounds":{"document_bytes":16777216,"sheet_cells":100000,"rows_first":2000,"rows_last":500,"rows_between":2000,"halvings":0,"cell_chars":16384,"cell_head_chars":4096},"cells_cut":0,"cells_raw":0,"read":"whole","date_system":"1900"}

{"sheet":"Intro","index":0,"n_rows":22,"n_cols":4,"rows_kept":22,"cut":false,"hidden":false,"merged":[]}
[]
[null,null,"CALCULS FINANCIERS"]
[]
[null,null,"APPLICATIONS SOUS EXCEL"]
[]
[null,null,"2018-10-11","CE IDF"]
[]
[null,null,"NOM","Gestion des noms"]
[null,null,"TABLE","Références croisées"]
[null,null,"TRANSPOSE","Calcul Matriciel"]
[null,null,"Table Simple Entrée","Table à Simple entrée"]
[null,null,"Table Double Entrée","Table à Double entrée"]
[]
[null,null,"DATES","Gestion des dates"]
[null,null,"ACTUARIAT","Calcul Actuariel"]
[null,null,"PRETS","Prêts bancaire à échéance constante"]
[null,null,"FR-UK","Dictionnaire"]
[null,null,"Lexique","Dictionnaire"]
[null,null,"RACCOURCIS","Raccourcis Clavier"]
[]
[null,null,"P DUCHEMIN"]
[null,null,"philippe.duchemin@finkeys.com"]

{"sheet":"Nom","index":1,"n_rows":22,"n_cols":14,"rows_kept":22,"cut":false,"hidden":false,"merged":[]}
["GESTION DES NOMS"]
[]
[1,"Donner le nom de la couleur aux plages suivantes",null,null,null,null,null,null,null,null,2,"Saisir le chiffre 111 à l'intersection des 2 zones"]
[]
[null,"jaune",null,null,null,null,null,null,null,null,null,"Obtenir le résultat avec la formule: = orange rouge"]
[]
[null,null,null,null,null,null,null,null,null,null,null,"F14",111]
[null,"bleu"]
[null,null,null,null,null,null,null,null,null,null,null,null,{"$f":"orange rouge","v":111}]
[null,"orange"]
[null,"et",null,null,null,null,null,null,null,null,3,"Saisie la zone suivante à l'intersection des 2 zones"]
[null,"rouge"]
[null,null,null,null,null,null,null,null,null,null,null,"F21:G22",33,44]
[null,null,null,null,null,111,null,null,null,null,null,null,55,66]
[]
[null,null,null,null,null,null,null,null,null,null,null,"Obtenir le résultat avec la formule: = violet vert"]
[null,null,null,null,null,null,null,null,null,null,null,"en sélectionnant la zone en jaune, saisir la formule et faire Ctrl+Shift Enter"]
[null,"violet"]
[null,"et",null,null,null,null,null,null,null,null,null,null,{"$f":"violet vert","v":33},44]
[null,"vert",null,null,null,null,null,null,null,null,null,null,55,66]
[null,null,null,null,33,44]
[null,null,null,null,55,66]

{"sheet":"Table","index":2,"n_rows":33,"n_cols":21,"rows_kept":33,"cut":false,"hidden":false,"merged":[]}
["TABLE DE MULTIPLICATION et d'ADDITION"]
[]
[null,"Le but de l'exercice est de remplir tout le tableau en saisissant la cellule dans le coin supérieur gauche et de la copier sur tout le reste du tableau à l'aide de la \"poignée\""]
[]
[null,"Saisir la formule suivante dans la cellule B14: \"B$13*$A14\""]
[null,"Copier en utilisant la \"poignée\" la cellule B14 jusqu'à la fin de la ligne, puis copier la ligne vers le bas, vers la dernière ligne"]
[]
[1,"Format conditionnel: mettre sur fond jaune les nombres compris entre 30 et 60"]
[2,"Format conditionnel: mettre en rouge les nombres impairs"]
[3,"Format conditionnel: mettre sur fond rouge, le chiffre maximum"]
[]
[null,"Addition",null,null,null,null,null,null,null,null,null,null,"Multiplication"]
[null,1,2,3,4,5,6,7,8,9,null,null,{"$f":"B13","v":1},2,3,4,5,6,7,8,9]
[1,{"$f":"$A14+B$13","v":2},{"$f":"$A14+C$13","v":3},4,5,6,7,8,9,10,null,1,{"$f":"$A14*M$13","v":1},2,3,4,5,6,7,8,9]
[2,{"$f":"$A15+B$13","v":3},4,5,6,7,8,9,10,11,null,2,2,4,6,8,10,12,14,16,18]
[3,4,5,6,7,8,9,10,11,12,null,3,3,6,9,12,15,18,21,24,27]
[4,5,6,7,8,9,10,11,12,13,null,4,4,8,12,16,20,24,28,32,36]
[5,6,7,8,9,10,11,12,13,14,null,5,5,10,15,20,25,30,35,40,45]
[6,7,8,9,10,11,12,13,14,15,null,6,6,12,18,24,30,36,42,48,54]
[7,8,9,10,11,12,13,14,15,16,null,7,7,14,21,28,35,42,49,56,63]
[8,9,10,11,12,13,14,15,16,17,null,8,8,16,24,32,40,48,56,64,72]
[9,10,11,12,13,14,15,16,17,18,null,9,9,18,27,36,45,54,63,72,81]
[10,11,12,13,14,15,16,17,18,19,null,10,10,20,30,40,50,60,70,80,90]
[11,12,13,14,15,16,17,18,19,20,null,11,11,22,33,44,55,66,77,88,99]
[12,13,14,15,16,17,18,19,20,21,null,12,12,24,36,48,60,72,84,96,108]
[13,14,15,16,17,18,19,20,21,22,null,13,13,26,39,52,65,78,91,104,117]
[14,15,16,17,18,19,20,21,22,23,null,14,14,28,42,56,70,84,98,112,126]
[15,16,17,18,19,20,21,22,23,24,null,15,15,30,45,60,75,90,105,120,135]
[16,17,18,19,20,21,22,23,24,25,null,16,16,32,48,64,80,96,112,128,144]
[17,18,19,20,21,22,23,24,25,26,null,17,{"$f":"$A30*M$13","v":17},34,51,68,85,102,119,136,153]
[18,19,20,21,22,23,24,25,26,27,null,18,18,36,54,72,90,108,126,144,162]
[19,20,21,22,23,24,25,26,27,28,null,19,19,38,57,76,95,114,133,152,171]
[20,21,22,23,24,25,26,27,28,29,null,20,20,40,60,80,100,120,140,160,180]

{"sheet":"Transpose","index":3,"n_rows":30,"n_cols":10,"rows_kept":30,"cut":false,"hidden":false,"merged":[]}
["TRANSPOSE"]
[]
[null,"LIGNE","COLONNE","TRANSPOSE","INDIRECT"]
[null,"LIGNES","COLONNES","INDEX"]
[]
[null,"taba",1,"donner le nom \"taba\", à la table d'entrée: (B5:B10)"]
[1,18]
[2,20,2,"appliquer les fonctions excel suivantes sur cette table:"]
[3,2]
[4,24,3,"obtenir le vecteur transposé"]
[5,26]
[6,28,null,"Solution naive:"]
[null,null,null,{"$f":"B7","v":18},{"$f":"B8","v":20},{"$f":"C8","v":2},{"$f":"B10","v":24},{"$f":"B11","v":26},{"$f":"B12","v":28}]
[]
[null,"LIGNES COLONNES",null,"Fonction Transpose"]
[null,{"$f":"ROWS(taba)","v":6},{"$f":"form(B16)","v":"=LIGNES(taba)"},{"$f":"TRANSPOSE(taba)","v":18},20,2,24,26,28,{"$f":"form(I16)","v":"=TRANSPOSE(taba)"}]
[null,{"$f":"COLUMNS(taba)","v":1},{"$f":"form(B17)","v":"=COLONNES(taba)"}]
[null,null,null,"Copier Coller Transpose"]
[null,"LIGNE COLONNE",null,18,20,2,24,26,28]
[null,{"$f":"ROW(taba)","v":7},{"$f":"form(B20)","v":"=LIGNE(taba)"}]
[null,{"$f":"COLUMN(taba)","v":2},{"$f":"form(B21)","v":"=COLONNE(taba)"},"Copier click droit"]
[null,null,null,18,20,2,24,26,28]
[]
[null,null,null,"Fonction Index"]
[null,null,null,1,2,3,4,5,6]
[null,null,null,{"$f":"INDEX(taba,D25)","v":18},20,2,24,26,28,{"$f":"form(I26)","v":"=INDEX(taba;I25)"}]
[]
[null,null,null,{"$f":"COLUMN(D28)","v":4},5,6,7,8,9]
[null,null,null,"Formule \"tout en un\""]
[null,null,null,{"$f":"INDEX(taba,COLUMN(D28)-COLUMN($D$28)+1)","v":18},20,2,24,26,28,{"$f":"form(I30)","v":"=INDEX(taba;COLONNE(I28)-COLONNE($D$28)+1)"}]

{"sheet":"TableSimpleEntrée","index":4,"n_rows":47,"n_cols":13,"rows_kept":47,"cut":false,"hidden":false,"merged":[]}
["UTILISATION DE LA FONCTION TABLE A SIMPLE ENTREE"]
[]
[null,"OPTION ENTREE SIMPLE (et unique) ET SORTIES MULTIPLES"]
[]
[1,"On part d'une relation entre une cellule d'entrée unique (B16) et plusieurs cellules en sortie (D16 à G16) que je place en ligne, en utilisant des calculs quelconques"]
[2,"On crée une liste de valeurs à recalculer (en colonne de C17 à C27) dans laquelle on place les nouvelles valeurs d'input"]
[3,"Et pour finir on fait le calcul:"]
[null,null,"Sélection de la table dans sa totalité (C16 à G27)"]
[null,null,"Sélectionner la fonction",null,null,"MENU","Données","Table"]
[null,null,"Choisir Cellule d'entrée en colonne et indiquer la Cellule d'entrée B16 puis return"]
[]
[null,"INPUTS"]
[null,2,null,{"$f":"$B$13^2","v":4},{"$f":"ACOS($B$13/500)","v":1.5667963161281531},{"$f":"LOG($B$13)","v":0.3010299956639812},{"$f":"1/$B$13","v":0.5}]
[null,null,2,4,1.5667963161281531,0.3010299956639812,0.5]
[null,null,{"$f":"C14+6","v":8},64,1.5547956440495747,0.90308998699194354,0.125]
[null,null,14,196,1.5427926668368497,1.146128035678238,7.1428571428571425E-2]
[null,null,20,400,1.5307856524409076,1.3010299956639813,0.05]
[null,null,26,676,1.5187728635669469,1.414973347970818,3.8461538461538464E-2]
[null,null,32,1024,1.5067525554007029,1.505149978319906,3.125E-2]
[null,null,38,1444,1.4947229733074423,1.5797835966168101,2.6315789473684209E-2]
[null,null,44,1936,1.4826823504951774,1.6434526764861874,2.2727272727272728E-2]
[null,null,50,2500,1.4706289056333368,1.6989700043360187,0.02]
[null,null,56,3136,1.4585608404178168,1.7481880270062005,1.7857142857142856E-2]
[null,null,62,3844,1.4464763370729312,1.7923916894982539,1.6129032258064516E-2]
[]
[null,null,"Dans cet exemple, on calcule 4 fonctions différentes pour différentes entrées, saisies et allant de 2 à 62,"]
[null,null,"Les 4 fonctions sont différentes, et sont saisies dans les cases allant de D16 à G16"]
[null,null,"Les résultats s'affichent au croisement des lignes (entrée) et des colonnes ('fonctions)"]
[]
[null,"Cette fonction peut s'utiliser avec une seule colonne en sortie au lieu de 4 comme dans l'exemple"]
[null,"En général on place la cellule d'entrée au début de la table en C16, mais ce n'est pas obligatoire"]
[null,"La seconde option, Cellule d'entrée en ligne correspond au cas transposée, les lignes deviennent des colonnes et vice versa"]
[]
[null,"EXERCICE","Calculer la table suivante avec les mêmes formules",null,null,null,null,null,"RESULTAT"]
[]
[null,51,null,{"$f":"$B$36^2","v":2601},{"$f":"ACOS($B$36/500)","v":1.4686186255696434},{"$f":"LOG($B$36)","v":1.7075701760979363},{"$f":"1/$B$36","v":1.9607843137254902E-2},null,null,2601,1.4686186255696434,0.3010299956639812,0.5]
[null,null,15,225,1.5407918249714196,1.1760912590556813,6.6666666666666666E-2,null,15,225,0.99955003374898754,1.1760912590556813,6.6666666666666666E-2]
[null,null,21,441,1.5287839689827498,1.3222192947339193,4.7619047619047616E-2,null,21,441,0.99911812964637658,1.3222192947339193,4.7619047619047616E-2]
[null,null,27,729,1.5167700482976274,1.4313637641589874,3.7037037037037035E-2,null,27,729,0.99854235425956439,1.4313637641589874,3.7037037037037035E-2]
[null,null,33,1089,1.5047483166256952,1.5185139398778875,3.0303030303030304E-2,null,33,1089,0.99782279049921174,1.5185139398778875,3.0303030303030304E-2]
[null,null,39,1521,1.4927170174693802,1.5910646070264991,2.564102564102564E-2,null,39,1521,0.9969595419812568,1.5910646070264991,2.564102564102564E-2]
[null,null,45,2025,1.4806743817803012,1.6532125137753437,2.2222222222222223E-2,null,45,2025,0.99595273301199427,1.6532125137753437,2.2222222222222223E-2]
[null,null,51,2601,1.4686186255696434,1.7075701760979363,1.9607843137254902E-2,null,51,2601,0.99480250857017605,1.7075701760979363,1.9607843137254902E-2]
[null,null,57,3249,1.4565479474633614,1.7558748556724915,1.7543859649122806E-2,null,57,3249,0.99350903428613424,1.7558748556724915,1.7543859649122806E-2]
[null,null,63,3969,1.4444605261926613,1.7993405494535817,1.5873015873015872E-2,null,63,3969,0.99207249641793072,1.7993405494535817,1.5873015873015872E-2]
[null,null,69,4761,1.4323545180097423,1.8388490907372552,1.4492753623188406E-2,null,69,4761,0.99049310182453587,1.8388490907372552,1.4492753623188406E-2]
[null,null,75,5625,1.4202280540182106,1.8750612633917001,1.3333333333333334E-2,null,75,5625,0.98877107793604224,1.8750612633917001,1.3333333333333334E-2]

{"sheet":"TableDoubleEntrée","index":5,"n_rows":54,"n_cols":15,"rows_kept":54,"cut":false,"hidden":false,"merged":[]}
["UTILISATION DE LA FONCTION TABLE A DOUBLE ENTREE"]
[]
[]
[null,"OPTION ENTREES DOUBLE ET SORTIES MULTIPLES"]
[]
[1,"On part d'une relation entre deux cellules d'entrée (J20 et J21) et une seule cellule en sortie (J23)"]
[2,"On crée une liste de valeurs à recalculer: en colonne je met des valeurs pour la variable X (C21 à C31) et en ligne, on met des valeurs pour la variable Y (D20 à G20)"]
[3,"Mettre absolument la fonction output dans la cellule en haut à droite de la table, à savoir en C20"]
[4,"Et pour finir on fait le calcul:"]
[null,null,"Sélection de la table dans sa totalité (C20 à G31)"]
[null,null,"Sélectionner la fonction",null,"MENU","Données","Table"]
[null,null,"Choisir Cellule d'entrée en colonne la valeur d'input de X, à savoir J20 et dans la cellule d'entrée en ligne la variable Y donc la cellule J21"]
[null,null," "]
[]
[]
[]
[]
[]
[null,null,null,null,null,null,null,null,"INPUTS"]
[null,null,{"$f":"J23","v":13},3,5,7,15,null,"X=",2]
[null,null,2,13,29,53,229,null,"Y=",3]
[null,null,{"$f":"C21+6","v":8},73,89,113,289,null,"OUTPUT"]
[null,null,14,205,221,245,421,null,"=X*X+Y*Y",{"$f":"J20*J20+J21*J21","v":13}]
[null,null,20,409,425,449,625]
[null,null,26,685,701,725,901]
[null,null,32,1033,1049,1073,1249]
[null,null,38,1453,1469,1493,1669]
[null,null,44,1945,1961,1985,2161]
[null,null,50,2509,2525,2549,2725]
[null,null,56,3145,3161,3185,3361]
[null,null,62,3853,3869,3893,4069]
[]
[]
[null,"Cette fonction peut s'utiliser avec une seule colonne en sortie au lieu de 4 comme dans l'exemple"]
[null,"En général on place la cellule d'entrée au début de la table en C20, mais ce n'est pas obligatoire"]
[null,"La seconde option, Cellule d'entrée en ligne correspond au cas transposée, les lignes deviennent des colonnes et vice versa"]
[]
[]
[null,"EXERCICE",null,"Même Table avec fonction X^3+racine(Y)"]
[]
[null,null,null,null,null,null,null,null,"RESULTAT"]
[]
[null,null,null,null,null,null,null,null,9.7320508075688767,3,5,7,15,"INPUTS"]
[null,null,null,null,null,null,null,null,2,9.7320508075688767,10.23606797749979,10.64575131106459,11.872983346207416,"X=",2]
[null,null,null,null,null,null,null,null,8,513.73205080756884,514.23606797749983,514.6457513110646,515.87298334620743,"Y=",3]
[null,null,null,null,null,null,null,null,14,2745.7320508075691,2746.2360679774997,2746.6457513110645,2747.8729833462075,"OUTPUT"]
[null,null,null,null,null,null,null,null,20,8001.7320508075691,8002.2360679775002,8002.6457513110645,8003.8729833462075,"=X*X*X+racine(Y)",{"$f":"O44*O44*O44+SQRT(O45)","v":9.7320508075688767}]
[null,null,null,null,null,null,null,null,26,17577.732050807568,17578.236067977501,17578.645751311065,17579.872983346206]
[null,null,null,null,null,null,null,null,32,32769.732050807572,32770.236067977501,32770.645751311065,32771.872983346206]
[null,null,null,null,null,null,null,null,38,54873.732050807572,54874.236067977501,54874.645751311065,54875.872983346206]
[null,null,null,null,null,null,null,null,44,85185.732050807565,85186.236067977501,85186.645751311065,85187.872983346213]
[null,null,null,null,null,null,null,null,50,125001.73205080756,125002.2360679775,125002.64575131107,125003.87298334621]
[null,null,null,null,null,null,null,null,56,175617.73205080756,175618.2360679775,175618.64575131107,175619.8729833462]
[null,null,null,null,null,null,null,null,62,238329.73205080756,238330.2360679775,238330.64575131107,238331.8729833462]

{"sheet":"Dates","index":6,"n_rows":99,"n_cols":10,"rows_kept":99,"cut":false,"hidden":false,"merged":[]}
["CALCUL SUR LES DATES"]
[]
[null,null,"JOUR","DATE","MOIS.DECALER"]
[null,null,"MOIS","DATEVAL"]
[null,null,"ANNEE","DATEDIFF"]
[]
[null,"CONVERSION LITTERAL VERS NUMERIQUE"]
[]
[null,"jour","mois","année",null,"fonction Dateval","jour","mois","année","jour"]
[null,3,"février",2008,{"$f":"B10&C10&D10","v":"3février2008"},{"$f":"DATEVALUE(E10)","v":"2008-02-03"},{"$f":"DAY(F10)","v":3},{"$f":"MONTH(F10)","v":2},{"$f":"YEAR(F10)","v":2008},{"$f":"F10","v":"2008-02-03"}]
[null,12,"février",2007,{"$f":"B11&C11&D11","v":"12février2007"},{"$f":"DATEVALUE(E11)","v":"2007-02-12"},{"$f":"DAY(F11)","v":12},{"$f":"MONTH(F11)","v":2},{"$f":"YEAR(F11)","v":2007},{"$f":"F11","v":"2007-02-12"}]
[null,21,"avril",2008,{"$f":"B12&C12&D12","v":"21avril2008"},{"$f":"DATEVALUE(E12)","v":"2008-04-21"},{"$f":"DAY(F12)","v":21},{"$f":"MONTH(F12)","v":4},{"$f":"YEAR(F12)","v":2008},"2008-04-21"]
[null,null,null,null,null,null,"JOUR(F10)","MOIS(F10)","ANNEE(F10)"]
[null,"NOMBRE DE JOUR DE L'ANNEE"]
[null,null,null,null,"337+JOUR(DATE(C17;3;0))"]
[null,null,"année","DATE(C17;12;31)-DATE(C17-1;12;31)"]
[null,null,1998,{"$f":"DATE(C17,12,31)-DATE(C17-1,12,31)","v":365},{"$f":"337+DAY(DATE(C17,3,0))","v":365}]
[null,null,{"$f":"C17+1","v":1999},{"$f":"DATE(C18,12,31)-DATE(C18-1,12,31)","v":365},{"$f":"337+DAY(DATE(C18,3,0))","v":365}]
[null,null,{"$f":"C18+1","v":2000},366,366]
[null,null,2001,365,365]
[null,null,2002,365,365]
[null,null,2003,365,365]
[null,null,2004,366,366]
[null,null,2005,365,365]
[null,null,2006,365,365]
[null,null,2007,365,365]
[null,null,2008,366,366]
[]
[null,"NOMBRE DE JOUR DU MOIS"]
[null,null,"mois","année","JOUR(DATE(D31;C31;0))"]
[null,null,1,2008,{"$f":"DAY(DATE(D31,C31,0))","v":31}]
[null,null,2,{"$f":"D31","v":2008},{"$f":"DAY(DATE(D32,C32,0))","v":31}]
[null,null,3,2008,29]
[null,null,4,2008,31]
[null,null,5,2008,30]
[null,null,6,2008,31]
[null,null,7,2008,30]
[null,null,8,2008,31]
[null,null,9,2008,31]
[null,null,10,2008,30]
[null,null,11,2008,31]
[null,null,12,2008,30]
[null,null,1,2009,31]
[null,null,2,2009,31]
[]
[null,"TEST ANNEE  BISSEXTILE"]
[null,null,null,"SI(JOUR(DATE(C43;3;0))=29;\"bissextile\";\"non bissextile\")"]
[null,null,1999,{"$f":"IF(DAY(DATE(C48,3,0))=29,\"bissextile\",\"non bissextile\")","v":"non bissextile"}]
[null,null,2000,{"$f":"IF(DAY(DATE(C49,3,0))=29,\"bissextile\",\"non bissextile\")","v":"bissextile"}]
[null,null,2001,"non bissextile"]
[null,null,2002,"non bissextile"]
[null,null,2003,"non bissextile"]
[null,null,2004,"bissextile"]
[null,null,2005,"non bissextile"]
[]
[null,"REPARTITION DES JOURS PAR ANNEE ENTRE DEUX DATES"]
[null,"ET(D59>$D$54;D59<$D$55)*(D59-$D$54)-ET(D58>$D$54;D58<$D$55)*(D58-$D$54)+(D59>$D$55)*$D$56-(D58>$D$55)*$D$56"]
[null,null,"Start Date","2004-05-03"]
[null,null,"End Date","2011-06-02"]
[null,null,null,{"$f":"D59-D58","v":2586}]
[null,null,null,"DATE(C61;12;31)","ET(D63>$D$58;D63<$D$59)*(D63-$D$58)-ET(D62>$D$58;D62<$D$59)*(D62-$D$58)+(D63>$D$59)*$D$60-(D62>$D$59)*$D$60"]
[null,null,1999,{"$f":"+DATE(C62,12,31)","v":"1999-12-31"}]
[null,null,2000,{"$f":"+DATE(C63,12,31)","v":"2000-12-31"},{"$f":"AND(D63>$D$58,D63<$D$59)*(D63-$D$58)-AND(D62>$D$58,D62<$D$59)*(D62-$D$58)+(D63>$D$59)*$D$60-(D62>$D$59)*$D$60","v":0}]
[null,null,2001,"2001-12-31",{"$f":"AND(D64>$D$58,D64<$D$59)*(D64-$D$58)-AND(D63>$D$58,D63<$D$59)*(D63-$D$58)+(D64>$D$59)*$D$60-(D63>$D$59)*$D$60","v":0}]
[null,null,2002,"2002-12-31",0]
[null,null,2003,"2003-12-31",0]
[null,null,2004,"2004-12-31",242]
[null,null,2005,"2005-12-31",365]
[null,null,2006,"2006-12-31",365]
[null,null,2007,"2007-12-31",365]
[null,null,2008,"2008-12-31",366]
[null,null,2009,"2009-12-31",365]
[null,null,2010,"2010-12-31",365]
[null,null,2011,"2011-12-31",153]
[null,null,2012,"2012-12-31",0]
[null,null,2013,"2013-12-31",0]
[null,null,2014,"2014-12-31",0]
[null,null,2015,"2015-12-31",0]
[null,null,2016]
[]
[null,"FONCTION DATEDIF, DIFFERENCES"]
[]
[null,null,"jourdeb","2008-08-15"]
[null,null,"jourfin","2009-10-18","DATEDIF($D$83;$D$84;D85)",null,null,"différence classique"]
[null,null,null,"D",{"$f":"DATEDIF($D$83,$D$84,D85)","v":429},null,{"$f":"D84-D83","v":429},{"$f":"form(G85)","v":"=D84-D83"}]
[null,null,null,"Y",{"$f":"DATEDIF($D$83,$D$84,D86)","v":1},null,{"$f":"YEAR(D84)-YEAR(D83)","v":1},{"$f":"form(G86)","v":"=ANNEE(D84)-ANNEE(D83)"}]
[null,null,null,"M",14,null,{"$f":"MONTH(D84)-MONTH(D83)+12*G86","v":14},"=MOIS(D84)-MOIS(D83)+12*G86"]
[null,null,null,"YM",2,null,{"$f":"MONTH(D84)-MONTH(D83)","v":2},"=MOIS(D84)-MOIS(D83)"]
[null,null,null,"YD",64,null,{"$f":"DATE(YEAR(D84),MONTH(D84),DAY(D84))-DATE(YEAR(D84),MONTH(D83),DAY(D83))","v":64},"=DATE(ANNEE(D84);MOIS(D84);JOUR(D84))-DATE(ANNEE(D84);MOIS(D83);JOUR(D83))"]
[null,null,null,"MD",3,null,{"$f":"DAY(D84)-DAY(D83)","v":3},"=JOUR(D84)-JOUR(D83)"]
[]
[null,null,"jourdeb","2008-08-15"]
[null,null,"jourfin","2010-05-12","DATEDIF($D$92;$D$93;D94)",null,null,"différence classique"]
[null,null,null,"D",{"$f":"DATEDIF($D$92,$D$93,D94)","v":635},null,{"$f":"D93-D92","v":635},{"$f":"form(G94)","v":"=D93-D92"}]
[null,null,null,"Y",{"$f":"DATEDIF($D$92,$D$93,D95)","v":1},null,{"$f":"YEAR(D93)-YEAR(D92)","v":2},"=ANNEE(D93)-ANNEE(D92)"]
[null,null,null,"M",20,null,{"$f":"MONTH(D93)-MONTH(D92)+12*G95","v":21},"=MOIS(D93)-MOIS(D92)+12*G95"]
[null,null,null,"YM",8,null,{"$f":"MONTH(D93)-MONTH(D92)","v":-3},"=MOIS(D93)-MOIS(D92)"]
[null,null,null,"YD",270,null,{"$f":"DATE(YEAR(D93),MONTH(D93),DAY(D93))-DATE(YEAR(D93),MONTH(D92),DAY(D92))","v":-95},"=DATE(ANNEE(D93);MOIS(D93);JOUR(D93))-DATE(ANNEE(D93);MOIS(D92);JOUR(D92))"]
[null,null,null,"MD",27,null,{"$f":"DAY(D93)-DAY(D92)","v":-3},"=JOUR(D93)-JOUR(D92)"]

{"sheet":"Actuariat","index":7,"n_rows":175,"n_cols":10,"rows_kept":175,"cut":false,"hidden":false,"merged":[]}
["ACTUARIAT"]
[]
[null,"FONCTIONS EXCEL UTILISEES"]
[]
[null,null,"FR"]
[null,null,"VC"]
[null,null,"VA","VAN","VAN.PAIEMENTS"]
[null,null,"TRI",null,"TRI.PAIEMENTS"]
[null,null,null,null,"VC.PAIEMENTS"]
[]
[1,"CALCUL DE LA VALEUR FUTURE"]
[]
[null,null,"Placement de 1000 euros en début de chaque année pendant 4 ans sur un compte rapportant 10% par an"]
[null,null,"Calculer le capital final, après 3 ans, après 4 ans"]
[]
[null,null,"Montant",1000]
[null,null,"Durée",4]
[null,null,"Taux",0.1]
[]
[null,null,"VC",{"$f":"FV(D18,D17,D16)","v":-4641.0000000000036},"capital après 3 ans"]
[]
[null,null,null,null,"montant","intérêt","total"]
[null,null,"Vérification","année 1",{"$f":"D16","v":1000},{"$f":"E23*$D$18","v":100},{"$f":"E23+F23","v":1100}]
[null,null,null,"année 2",{"$f":"G23+$D$16","v":2100},{"$f":"E24*$D$18","v":210},{"$f":"E24+F24","v":2310}]
[null,null,null,"année 3",{"$f":"G24+$D$16","v":3310},{"$f":"E25*$D$18","v":331},{"$f":"E25+F25","v":3641}]
[null,null,null,"année 4",{"$f":"G25+$D$16","v":4641},{"$f":"E26*$D$18","v":464.1},{"$f":"E26+F26","v":5105.1000000000004}]
[]
[]
[2,"CALCUL DE LA VALEUR ACTUELLE"]
[]
[null,null,"Placement rapportant 150 euros par an, pendant 6 ans"]
[null,null,"Calculer la valeur actuelle en utilisant un taux d'actualisation de 4%"]
[]
[null,null,"Montant",150]
[null,null,"Durée",6]
[null,null,"Taux",0.04]
[]
[null,null,"VA",{"$f":"-PV(D36,D35,D34)","v":786.32052851195351}]
[]
[null,null,"Vérification",null,null,"facteur actualisation",null,"flux actualisés"]
[null,null,"Flux","année 1",{"$f":"D34","v":150},0,{"$f":"POWER(1+$D$36,-F41)","v":1},{"$f":"G41*E41","v":150}]
[null,null,null,"année 2",{"$f":"E41","v":150},1,0.96153846153846145,144.23076923076923]
[null,null,null,"année 3",{"$f":"E42","v":150},2,0.92455621301775137,138.68343195266272]
[null,null,null,"année 4",{"$f":"E43","v":150},3,0.88899635867091487,133.34945380063724]
[null,null,null,"année 5",{"$f":"E44","v":150},4,0.85480419102972571,128.22062865445886]
[null,null,null,"année 6",{"$f":"E45","v":150},5,0.82192710675935154,123.28906601390273]
[null,null,null,null,null,null,null,{"$f":"SUM(H41:H46)","v":817.77334965243074}]
[null,null,"REPONSE",{"$f":"-PV(D36,D35,D34)*(1+D36)","v":817.77334965243165}]
[]
[3,"CALCUL DE LA VALEUR FUTURE"]
[]
[null,null,"Placement de 1000, 500, 1500 et 3000 en début de chaque année sur un compte rapportant 3% par an"]
[null,null,"Calculer le capital final, après 3 ans, après 4 ans et calculer les intérêts reçus"]
[]
[null,null,"Taux",0.03]
[]
[null,null,null,"montant","solde début","solde fin"]
[null,null,"année 1",1000,{"$f":"D58","v":1000},{"$f":"E58*(1+$D$55)","v":1030}]
[null,null,"année 2",500,{"$f":"F58+D59","v":1530},{"$f":"E59*(1+$D$55)","v":1575.9}]
[null,null,"année 3",1500,{"$f":"F59+D60","v":3075.9},{"$f":"E60*(1+$D$55)","v":3168.1770000000001}]
[null,null,"année 4",3000,{"$f":"F60+D61","v":6168.1769999999997},{"$f":"E61*(1+$D$55)","v":6353.2223100000001}]
[null,null,null,{"$f":"SUM(D58:D61)","v":6000},null,"intérêts"]
[null,null,"Résultats","après 3 ans",{"$f":"E61","v":6168.1769999999997},{"$f":"E63-$D$62","v":168.17699999999968}]
[null,null,null,"après 4 ans",{"$f":"F61","v":6353.2223100000001},{"$f":"E64-$D$62","v":353.22231000000011}]
[null,null,"avec fonction VAN",null,{"$f":"NPV(D55,D58:D61)*POWER(1+D55,4)","v":6168.1769999999997}]
[null,null,null,null,{"$f":"NPV(D55,D58:D61)*POWER(1+D55,5)","v":6353.2223099999992}]
[]
[4,"CALCUL DE LA VALEUR ACTUELLE"]
[]
[null,null,"Placement de 150, 200, 200, 250 et 400 euros en début de chaque année"]
[null,null,"Calculer la valeur actuelle en utilisant un taux d'actualisation de 4%"]
[]
[null,null,"Taux",0.04]
[]
[null,null,null,"montant","facteur actualisation",null,"flux actualisés",null,"dates"]
[null,null,"année 1",150,0,{"$f":"POWER(1+$D$73,-E76)","v":1},{"$f":"F76*D76","v":150},null,{"$f":"TODAY()","v":"2018-10-22"}]
[null,null,"année 2",200,1,{"$f":"POWER(1+$D$73,-E77)","v":0.96153846153846145},{"$f":"F77*D77","v":192.30769230769229},null,{"$f":"I76+365","v":"2019-10-22"}]
[null,null,"année 3",200,2,{"$f":"POWER(1+$D$73,-E78)","v":0.92455621301775137},{"$f":"F78*D78","v":184.91124260355028},null,{"$f":"I77+365","v":"2020-10-21"}]
[null,null,"année 4",250,3,{"$f":"POWER(1+$D$73,-E79)","v":0.88899635867091487},{"$f":"F79*D79","v":222.24908966772873},null,{"$f":"I78+365","v":"2021-10-21"}]
[null,null,"année 5",400,4,{"$f":"POWER(1+$D$73,-E80)","v":0.85480419102972571},{"$f":"F80*D80","v":341.9216764118903},null,{"$f":"I79+365","v":"2022-10-21"}]
[null,null,null,null,null,null,{"$f":"SUM(G76:G80)","v":1091.3897009908615}]
[null,null,"VAN",{"$f":"NPV(D73,D76:D80)","v":1049.4131740296743}]
[null,null,"REPONSE",{"$f":"D82*(1+D73)","v":1091.3897009908615}]
[null,null,null,{"$f":"XNPV(D73,D76:D80,I76:I80)","v":1091.3897009908615}]
[]
[5,"CALCUL DE LA VALEUR ACTUELLE avec DES DATES"]
[]
[null,null,"Placement des montants suivants:"]
[null,null,null,"Montant","Date"]
[null,null,"Flux 1",250,"2010-05-04"]
[null,null,"Flux 2",1200,"2010-11-05"]
[null,null,"Flux 3",900,"2011-01-04"]
[null,null,"Flux 4",-400,"2011-07-03"]
[null,null,"Flux 5",450,"2011-08-27"]
[null,null,"Flux 6",350,"2012-01-24"]
[]
[null,null,"Calculer la valeur actuelle en utilisant un taux d'actualisation de 4%"]
[]
[null,null,"Taux",0.04]
[null,null,"VAN.PAIEMENTS",{"$f":"XNPV(D99,D90:D95,E90:E95)","v":2675.3215678969796}]
[]
[null,null,null,"montant",null,"durée","facteur actua.","flux actualisés"]
[null,null,"année 1",{"$f":"D90","v":250},{"$f":"E90","v":"2010-05-04"},0,{"$f":"POWER(1+$D$73,-F103)","v":1},{"$f":"G103*D103","v":250}]
[null,null,"année 2",{"$f":"D91","v":1200},"2010-11-05",{"$f":"E104-$E$103","v":185},{"$f":"POWER(1+$D$99,-F104/365)","v":0.98031729275845136},1176.3807513101417]
[null,null,"année 3",900,"2011-01-04",{"$f":"E105-$E$103","v":245},{"$f":"POWER(1+$D$99,-F105/365)","v":0.97401728205253679},876.61555384728308]
[null,null,"année 4",-400,"2011-07-03",{"$f":"E106-$E$103","v":425},{"$f":"POWER(1+$D$99,-F106/365)","v":0.9553591330224912},-382.14365320899645]
[null,null,"année 5",450,"2011-08-27",{"$f":"E107-$E$103","v":480},{"$f":"POWER(1+$D$99,-F107/365)","v":0.94972964020677775},427.37833809304999]
[null,null,"année 6",350,"2012-01-24",{"$f":"E108-$E$103","v":630},{"$f":"POWER(1+$D$99,-F108/365)","v":0.93454450815857482},327.09057785550118]
[null,null,null,null,null,null,null,{"$f":"SUM(H103:H108)","v":2675.3215678969796}]
[null,null,"REPONSE",{"$f":"D100","v":2675.3215678969796}]
[]
[6,"CALCUL DU TAUX DE RENDEMENT D'UN PROJET"]
[]
[null,null,"Projet d'investissement de 1000 euros, rapportant 200, 260, 300 et 500 les années suivantes (en fin d'année)"]
[null,null,"Calculer le taux de rentabilité du projet"]
[null,null,null,"Flux",null,"Vérifications","facteur actua","flux actualisé","flux décalé","compte simulé"]
[null,null,null,-1000,null,1,{"$f":"POWER(1+$D$123,-F117)","v":0.92137654437770677},{"$f":"G117*D117","v":-921.37654437770675},{"$f":"D117","v":-1000},{"$f":"D117","v":-1000}]
[null,null,null,200,null,2,{"$f":"POWER(1+$D$123,-F118)","v":0.84893473652940443},{"$f":"G118*D118","v":169.78694730588089},{"$f":"D118*G117","v":184.27530887554136},{"$f":"J117*(1+$D$123)+D118","v":-885.33259946984549}]
[null,null,null,260,null,3,{"$f":"POWER(1+$D$123,-F119)","v":0.78218855394566167},{"$f":"G119*D119","v":203.36902402587202},{"$f":"D119*G118","v":220.72303149764514},{"$f":"J118*(1+$D$123)+D119","v":-700.88033157800294}]
[null,null,null,300,null,4,{"$f":"POWER(1+$D$123,-F120)","v":0.72069018688624931},{"$f":"G120*D120","v":216.20705606587478},{"$f":"D120*G119","v":234.65656618369849},{"$f":"J119*(1+$D$123)+D120","v":-460.68827218884121}]
[null,null,null,500,null,5,{"$f":"POWER(1+$D$123,-F121)","v":0.66402703396017615},{"$f":"G121*D121","v":332.01351698008807},{"$f":"D121*G120","v":360.34509344312465},{"$f":"J120*(1+$D$123)+D121","v":1.3244516594568267E-11}]
[null,null,null,null,null,null,null,{"$f":"SUM(H117:H121)","v":8.9812601800076663E-12},{"$f":"SUM(I117:I121)","v":9.6065377874765545E-12}]
[null,null,"TRI ",{"$f":"IRR(D117:D121)","v":8.5332599469845505E-2}]
[]
[null,null,"Calculer le taux de rentabilité du projet si les flux sont reçus tous les 6 mois"]
[]
[null,null,"TRI ",{"$f":"2*D123","v":0.17066519893969101}]
[]
[null,null,"Contrôle du résultat avec la fonction VAN"]
[null,null,"VAN",{"$f":"NPV(D123,D118:D121)","v":1000.0000000000094}]
[]
[7,"CALCUL DU TAUX DE RENDEMENT D'UN PROJET avec 2 solutions"]
[]
[null,null,"Projet d'investissement de 11 000 euros, puis des revenus de 15 000 par an pendant 9 ans, et un remboursement in fine de 135 000"]
[null,null,"Calculer les taux de rentabilité du projet"]
[null,null,null,null,null,null,"Graphe de la Valeur Actuelle"]
[null,null,"Flux",-11000,null,null,0,{"$f":"NPV(G137,$D$137:$D$147)*(1+G137)","v":-11000}]
[null,null,1,15000,null,null,{"$f":"G137+0.15","v":0.15},{"$f":"NPV(G138,$D$137:$D$147)*(1+G138)","v":27203.823469533578}]
[null,null,2,15000,null,null,{"$f":"G138+0.15","v":0.3},24492.369942718855]
[null,null,3,15000,null,null,0.44999999999999996,17871.00612634248]
[null,null,4,15000,null,null,0.6,12408.384271897372]
[null,null,5,15000,null,null,0.75,8368.9432237654219]
[null,null,6,15000,null,null,0.9,5394.8270556453299]
[null,null,7,15000,null,null,1.05,3160.3825108838487]
[null,null,8,15000,null,null,1.2,1438.8175932301751]
[null,null,9,15000,null,null,1.3499999999999999,79.745997132028904]
[null,null,null,-135000,null,null,1.4999999999999998,-1016.777216]
[null,null,null,null,null,null,1.6499999999999997,-1918.4059898436101]
[null,null,null,null,"Vérifications avec VAN"]
[null,null,"TRI",{"$f":"IRR(D137:D147)","v":1.8644788898896092E-2},{"$f":"NPV(D150,$D$138:$D$147)","v":11000.000000000093}]
[null,null,null,{"$f":"IRR(D137:D147,0.8)","v":1.3599205495612012},{"$f":"NPV(D151,$D$138:$D$147)","v":11000.000000000033}]
[]
[8,"CALCUL DU TAUX DE RENDEMENT D'UN PROJET avec DES DATES"]
[null,null,null,null,null,null,"Vérifications"]
[null,null,null,"Flux","Date",null,"durées","facteur actua",null,"flux actualisé"]
[null,null,null,-11500,"2008-02-15",null,0,{"$f":"POWER(1+$D$162,-G156/365)","v":1},null,{"$f":"H156*D156","v":-11500}]
[null,null,null,2000,"2008-04-20",null,{"$f":"E157-$E$156","v":65},{"$f":"POWER(1+$D$162,-G157/365)","v":0.9829954894115801},null,{"$f":"H157*D157","v":1965.9909788231603}]
[null,null,null,3000,"2008-06-19",null,{"$f":"E158-$E$156","v":125},{"$f":"POWER(1+$D$162,-G158/365)","v":0.96755577552787098},null,{"$f":"H158*D158","v":2902.667326583613}]
[null,null,null,5000,"2008-08-21",null,{"$f":"E159-$E$156","v":188},{"$f":"POWER(1+$D$162,-G159/365)","v":0.95160500714559682},null,{"$f":"H159*D159","v":4758.0250357279838}]
[null,null,null,2000,"2008-10-20",null,{"$f":"E160-$E$156","v":248},{"$f":"POWER(1+$D$162,-G160/365)","v":0.9366583372993007},null,{"$f":"H160*D160","v":1873.3166745986014}]
[null,null,null,null,null,null,null,null,null,{"$f":"SUM(J156:J160)","v":1.5733357486169552E-5}]
[null,null,"TRI,PAIEMENTS",{"$f":"XIRR(D156:D160,E156:E160)","v":0.10109819769859316}]
[null,null,null,{"$f":"IRR(D156:D160)","v":1.6660074710407757E-2}]
[null,null,null,{"$f":"D163*6","v":9.9960448262446544E-2}]
[]
[9,"CALCUL DE CAPITALISATION AVEC PLUSIEURS TAUX D'INTERETS"]
[]
[null,null,null,"Rates",null,1]
[null,null,null,0.02,null,{"$f":"F168*(1+D169)","v":1.02}]
[null,null,null,0.04,null,{"$f":"F169*(1+D170)","v":1.0608}]
[null,null,null,0.06,null,{"$f":"F170*(1+D171)","v":1.1244480000000001}]
[null,null,null,0.04,null,{"$f":"F171*(1+D172)","v":1.1694259200000001}]
[null,null,null,0.08,null,{"$f":"F172*(1+D173)","v":1.2629799936000001}]
[]
[null,null,null,{"$f":"FVSCHEDULE(1,D169:D173)","v":1.2629799936000001}]

{"sheet":"Pret","index":8,"n_rows":240,"n_cols":10,"rows_kept":240,"cut":false,"hidden":false,"merged":[]}
["PRETS"]
[]
["FONCTIONS EXCEL UTILISEES"]
[]
[null,"VPM","(taux;npm;va;vc;type)",null,"Calcule le remboursement d'un emprunt"]
[null,"TAUX","(npm;vpm;va;vc;type;estimation)",null,"Calcule le taux d'intérêt"]
[null,"NPM","(taux;vpm;va;vc;type)",null,"Renvoie le nombre de versements"]
[null,"INTPER","(taux;pér;npm;va;vc;type)",null,"Renvoie, pour une période donnée, le montant des intérêts"]
[null,"VA","(taux;npm;vpm;vc;type)",null,"Calcule la valeur actuelle d'un investissement"]
[null,"VC","(taux;npm;vpm;va;type)",null,"Renvoie la valeur future d'un investissement"]
[null,"PRINCPER","(taux;pér;npm;va;vc;type)",null,"Calcule, pour une période donnée, la part de remboursement du principal"]
[]
["LES ARGUMENTS"]
[]
[null,"vpm","représente le montant du remboursement pour chaque période."]
[null,"taux","représente le taux d'intérêt par période."]
[null,"pér ","représente la période pour laquelle vous souhaitez calculer les intérêts. La valeur spécifiée doit être comprise entre 1 et npm."]
[null,"npm","représente le nombre total de périodes de paiement pendant la durée de l'emprunt."]
[null,"va","représente la valeur actuelle du total des paiements futurs."]
[null,"vc","représente la valeur future (valeur capitalisée), c'est-à-dire le montant que vous souhaitez atteindre après le dernier paiement. Si vc est omis, la valeur par défaut est 0 (la valeur future d'un emprunt, par exemple, est égale à 0)."]
[null,"type","peut prendre les valeurs 0 ou 1 et indique l'échéance des paiements. Si type est omis, la valeur par défaut est 0."]
[null," ","0 pour paiment en fin de période, 1 pour paiement en début de période, le défaut est 0"]
[]
[1,"ECHEANCE CONSTANTE"]
[]
[null,null,"Emprunt de 100 000 euros sur 10 ans"]
[null,null,"Calculer les échéances constantes, pour un remboursement annuel/mensuel à terme échu, à échoir"]
[null,null,"Calculer le montant total des remboursement et la part des intérêts"]
[]
[null,"taux annuel","annuités",null,null,"mensualités",null,null,"trimestres"]
[null,"taux période",0.03,{"$f":"C31","v":0.03},null,{"$f":"D31/12","v":2.5000000000000001E-3},{"$f":"F31","v":2.5000000000000001E-3},null,{"$f":"G31*3","v":7.4999999999999997E-3},{"$f":"I31","v":7.4999999999999997E-3}]
[null,"NB DE PERIODES",10,{"$f":"C32","v":10},null,{"$f":"D32*12","v":120},{"$f":"F32","v":120},null,{"$f":"G32/3","v":40},{"$f":"I32","v":40}]
[null,"MONTANT",100000,100000,null,100000,100000,null,100000,100000]
[null,"TYPE",0,1,null,0,1,null,0,1]
[]
[null,"ECHEANCE",{"$f":"-PMT(C31,C32,C33,,C34)","v":11723.050660515959},{"$f":"-PMT(D31,D32,D33,,D34)","v":11381.602583025202},null,{"$f":"-PMT(F31,F32,F33,,F34)","v":965.60744698389522},{"$f":"-PMT(G31,G32,G33,,G34)","v":963.19944836298771},null,{"$f":"-PMT(I31,I32,I33,,I34)","v":2903.015609764213},{"$f":"-PMT(J31,J32,J33,,J34)","v":2881.4050717262653}]
[]
[null,"remb total",{"$f":"C32*C36","v":117230.50660515959},{"$f":"D32*D36","v":113816.02583025202},null,{"$f":"F32*F36","v":115872.89363806743},{"$f":"G32*G36","v":115583.93380355852},null,{"$f":"I32*I36","v":116120.62439056853},{"$f":"J32*J36","v":115256.20286905061}]
[null,"somme intérêts",{"$f":"C38-C33","v":17230.506605159593},{"$f":"D38-D33","v":13816.025830252023},null,{"$f":"F38-F33","v":15872.893638067428},{"$f":"G38-G33","v":15583.933803558524},null,{"$f":"I38-I33","v":16120.624390568526},{"$f":"J38-J33","v":15256.202869050612}]
[]
[2,"ECHEANCIERS"]
[]
[null,null,"Fabrication de l'échéancier"]
[]
[null,null,"TAUX",{"$f":"C31","v":0.03}]
[null,null,"NB PERIODES",{"$f":"+C32","v":10}]
[null,null,"MONTANT",{"$f":"+C33","v":100000}]
[]
[null,"CRD","INTERET","CAPITAL","ECHEANCE",null,"DF"]
[1,{"$f":"+D47","v":100000},{"$f":"B50*$D$45","v":3000},{"$f":"E50-C50","v":8723.050660515959},{"$f":"C36","v":11723.050660515959},null,{"$f":"POWER(1+$D$45,-A50)","v":0.970873786407767}]
[2,{"$f":"B50-D50","v":91276.949339484039},2738.3084801845212,{"$f":"E51-C51","v":8984.7421803314373},{"$f":"E50","v":11723.050660515959},null,{"$f":"POWER(1+$D$45,-A51)","v":0.94259590913375435}]
[3,{"$f":"B51-D51","v":82292.207159152604},2468.7662147745782,{"$f":"E52-C52","v":9254.2844457413812},{"$f":"E51","v":11723.050660515959},null,0.91514165935315961]
[4,73037.922713411215,2191.1376814023365,9531.912979113622,11723.050660515959,null,0.888487047915689]
[5,63506.009734297593,1905.1802920289276,9817.8703684870306,11723.050660515959,null,0.86260878438416411]
[6,53688.139365810566,1610.6441809743169,10112.406479541642,11723.050660515959,null,0.83748425668365445]
[7,43575.732886268925,1307.2719865880676,10415.778673927891,11723.050660515959,null,0.81309151134335378]
[8,33159.954212341036,994.79862637023098,10728.252034145728,11723.050660515959,null,0.78940923431393573]
[9,22431.702178195308,672.95106534585921,11050.099595170101,11723.050660515959,null,0.76641673234362695]
[10,11381.602583025207,341.44807749075619,11381.602583025202,11723.050660515959,null,0.74409391489672516]
[null,{"$f":"B59-D59","v":0}]
[null,"TOTAUX",{"$f":"SUM(C50:C59)","v":17230.506605159597},{"$f":"SUM(D50:D59)","v":100000},{"$f":"SUM(E50:E59)","v":117230.50660515959},null,{"$f":"SUM(G50:G59)","v":8.53020283677583}]
[]
[null,null,"Vérification en utilisant les fonctions VA et VAN, lien entre les flux, le taux et le montant initial"]
[null,null,"VAN",{"$f":"NPV(D45,E50:E59)","v":99999.999999999985},{"$f":"form(D64)","v":"=VAN(D45;E50:E59)"}]
[null,null,"VA",{"$f":"PV(D45,D46,E50)","v":-99999.999999999971},{"$f":"form(D65)","v":"=VA(D45;D46;E50)"}]
[]
[null,null,"Retrouver l'échéance constante en inversant la fonction VA, à l'aide du solveur"]
[null,null,"Cellule d'entrée",11700]
[null,null,"Cellule de sortie",{"$f":"PV(D45,D46,D68)+D47+D68","v":11896.626809722817}]
[]
[null,null,"Retrouver l'échéance constante en saisissant la formule du cours"]
[null,null,null,{"$f":"D47*D45/(1-POWER(1+D45,-D46))","v":11723.050660515963}]
[]
[3,"ECHEANCIER AVEC AMORTISSEMENT CONSTANT"]
[]
[]
[null,null,"Taux",0.04]
[null,null,"Nombre de périodes",10]
[null,null,"Montant",100000]
[]
[null,"CRD","INTERET","CAPITAL","ECHEANCE",null,"DF"]
[1,{"$f":"D79","v":100000},{"$f":"B82*$D$105","v":4000},{"$f":"D79/D78","v":10000},{"$f":"C82+D82","v":14000},null,{"$f":"POWER(1+$D$105,-A82)","v":0.96153846153846145}]
[2,{"$f":"B82-D82","v":90000},3600,{"$f":"D82","v":10000},{"$f":"C83+D83","v":13600},null,0.92455621301775137]
[3,{"$f":"B83-D83","v":80000},3200,{"$f":"D83","v":10000},13200,null,0.88899635867091487]
[4,70000,2800,10000,12800,null,0.85480419102972571]
[5,60000,2400,10000,12400,null,0.82192710675935154]
[6,50000,2000,10000,12000,null,0.79031452573014571]
[7,40000,1600,10000,11600,null,0.75991781320206331]
[8,30000,1200,10000,11200,null,0.73069020500198378]
[9,20000,800,10000,10800,null,0.70258673557883045]
[10,10000,400,10000,10400,null,0.67556416882579851]
[null,{"$f":"B91-D91","v":0}]
[null,"TOTAL",{"$f":"SUM(C82:C91)","v":22000},{"$f":"SUM(D82:D91)","v":100000},{"$f":"SUM(E82:E91)","v":122000},null,{"$f":"SUM(G82:G91)","v":8.1108957793550278}]
[null,null,null,null,null,null,{"$f":"D79/G93","v":12329.094433013652}]
[null,null,"Contrôles avec les fonctions VA et VAN"]
[null,null,"VAN",{"$f":"NPV(D77,E82:E91)","v":99999.999999999971},{"$f":"form(D96)","v":"=VAN(D77;E82:E91)"}]
[]
[null,null,"Intérêts",{"$f":"(D78+1)/2*D77*D79","v":22000},{"$f":"form(D98)","v":"=(D78+1)/2*D77*D79"}]
[]
[]
[4,"ECHEANCIERS DIFFERES"]
[]
[null,null,"Emprunt de 10 ans, dont les 4 premières années sont en franchise totale: d'intérêt et de capital"]
[]
[null,null,"TAUX",0.04]
[]
[null,null,null,null,{"$f":"-F110","v":22316.444457081547},"<- Cellule a modifier"]
[null,"CRD","INTERET","CAPITAL","ECHEANCE"]
[1,100000,{"$f":"B109*$D$105","v":4000},{"$f":"E109-C109","v":-4000},0,"Solution avec la Fonction VPM"]
[2,{"$f":"B109-D109","v":104000},4160,{"$f":"E110-C110","v":-4160},{"$f":"E109","v":0},{"$f":"PMT(D105,A114,B113)","v":-22316.444457081547}]
[3,{"$f":"B110-D110","v":108160},4326.3999999999996,{"$f":"E111-C111","v":-4326.3999999999996},{"$f":"E110","v":0}]
[4,112486.39999999999,4499.4560000000001,-4499.4560000000001,0]
[5,116985.856,4679.4342400000005,17637.010217081544,{"$f":"E107","v":22316.444457081547}]
[6,99348.845782918448,3973.9538313167382,18342.490625764807,22316.444457081547]
[7,81006.355157153637,3240.2542062861457,19076.1902507954,22316.444457081547]
[8,61930.164906358237,2477.2065962543297,19839.237860827216,22316.444457081547]
[9,42090.927045531018,1683.6370818212408,20632.807375260305,22316.444457081547]
[10,21458.119670270713,858.32478681082853,21458.119670270717,22316.444457081547]
[null,0,"<--Target = 0"]
[" "]
[null,null,"Emprunt de 10 ans, dont les 4 premières années sont en franchise de capital, seuls les intérêts sont payés"]
[]
[null,null,"TAUX",0.04]
[]
[null,null,0.04,null,{"$f":"-F127","v":19076.190250795404},"<- Cellule a modifier"]
[null,"CRD","INTERET","CAPITAL","ECHEANCE"]
[1,100000,{"$f":"B127*$D$123","v":4000},{"$f":"0","v":0},{"$f":"C127","v":4000},{"$f":"PMT(D123,A132,B127)","v":-19076.190250795404}]
[2,{"$f":"B127-D127","v":100000},4000,{"$f":"0","v":0},{"$f":"C128","v":4000}]
[3,{"$f":"B128-D128","v":100000},4000,{"$f":"0","v":0},{"$f":"C129","v":4000}]
[4,100000,4000,{"$f":"0","v":0},{"$f":"C130","v":4000}]
[5,100000,4000,{"$f":"E131-C131","v":15076.190250795404},{"$f":"E125","v":19076.190250795404}]
[6,84923.809749204593,3396.952389968184,15679.237860827219,{"$f":"E131","v":19076.190250795404}]
[7,69244.571888377366,2769.7828755350947,16306.407375260309,{"$f":"E132","v":19076.190250795404}]
[8,52938.164513117059,2117.5265805246822,16958.663670270722,{"$f":"E133","v":19076.190250795404}]
[9,35979.500842846333,1439.1800337138534,17637.010217081552,{"$f":"E134","v":19076.190250795404}]
[10,18342.490625764782,733.69962503059128,18342.490625764811,{"$f":"E135","v":19076.190250795404}]
[null,-2.9103830456733704E-11,"<--Target = 0"]
[]
[5,"PRET AVEC ANNUITES PROGRESSIVES"]
[]
[null,"Montant",null,100000]
[null,"Durée",null,10,"years"]
[null,"Taux",null,0.04]
[null,"Taux de progression",null,0.02]
[null,"Paiements en fin de période"]
[]
[null,"Taux d'inflation anticipé"]
[null,"années","1 à 5",0.04]
[null,null,"6 à 10",0.05]
[]
[null,"Taux ajusté",{"$f":"(1+D143)/(1+D144)-1","v":1.9607843137254832E-2}]
[null,"Montant ajusté",{"$f":"D141*(1+D144)","v":102000}]
[]
[null,"Première échéance",{"$f":"-PMT(C151,D142,C152)","v":11332.019523541583}]
[]
[null,"Taux réel",{"$f":"IRR(H158:H168)","v":-2.5106178894892528E-3}]
[]
[null,"CRD","INTERET","CAPITAL","ECHEANCE","INFLATION RATE","DF",{"$f":"-D141","v":-100000}]
[1,{"$f":"D141","v":100000},{"$f":"B159*$D$143","v":4000},{"$f":"E159-C159","v":7332.0195235415831},{"$f":"C154","v":11332.019523541583},{"$f":"D148","v":0.04},{"$f":"1/(1+F159)","v":0.96153846153846145},{"$f":"G159*E159","v":10896.172618789982}]
[2,{"$f":"B159-D159","v":92667.980476458411},{"$f":"B160*$D$143","v":3706.7192190583364},{"$f":"E160-C160","v":7851.940694954078},{"$f":"E159*(1+$D$144)","v":11558.659914012414},{"$f":"F159","v":0.04},{"$f":"G159*1/(1+F160)","v":0.92455621301775137},{"$f":"G160*E160","v":10686.630837659406}]
[3,84816.03978150434,3392.6415912601738,{"$f":"E161-C161","v":8397.1915210324896},{"$f":"E160*(1+$D$144)","v":11789.833112292663},{"$f":"F160","v":0.04},{"$f":"G160*1/(1+F161)","v":0.88899635867091475},10481.118706165955]
[4,76418.848260471845,3056.753930418874,8968.8758441196424,12025.629774538516,{"$f":"F161","v":0.04},0.85480419102972571,10279.558731047378]
[5,67449.972416352204,2697.9988966540882,9568.1434733751994,12266.142370029287,{"$f":"F162","v":0.04},0.82192710675935166,10081.874909296468]
[6,57881.828942977008,2315.2731577190802,10196.192059710793,12511.465217429874,{"$f":"D149","v":0.05},0.78278772072319203,9793.8213404594262]
[7,47685.636883266212,1907.4254753306486,10854.269046447822,12761.694521778471,{"$f":"F164","v":0.05},0.74551211497446856,9513.9978735891564]
[8,36831.36783681839,1473.2547134727356,11543.673698741304,13016.92841221404,{"$f":"F165","v":0.05},0.71001153807092243,9242.1693629151814]
[9,25287.694138077088,1011.5077655230835,12265.759214935237,13277.26698045832,{"$f":"F166","v":0.05},0.67620146482944987,8978.1073811176029]
[10,13021.934923141851,520.87739692567402,13021.934923141813,13542.812320067487,{"$f":"F167","v":0.05},0.64400139507566656,8721.5900273713869]
[16,3.8198777474462986E-11]
[]
[null,"VAN",{"$f":"NPV(D143,H159:H168)","v":80671.843745821941}]
[null,"TRI",{"$f":"IRR(H158:H168)","v":-2.5106178894892528E-3}]
[]
[]
[6,"ECHEANCIER AVEC ANNUITES PROGRESSIVES"]
[]
[null,null,"Construire l'échéancier avec des échéances trimestrielles croissante de 20% par an"]
[]
[null,"Emprunt ",100000]
[null,"Durée","4 ans"]
[null,"Échéances","Trimestrielles"]
[]
[null,null,"TAUX",0.04,{"$f":"D183/4","v":0.01}]
[null,"CRD","INTERET","CAPITAL","ECHEANCE",5108.76,null,"DF"]
[1,100000,{"$f":"ROUND(B185*$E$183,2)","v":1000},{"$f":"E185-C185","v":4108.76},{"$f":"F184","v":5108.76},1,{"$f":"F185","v":1},{"$f":"POWER(1+$E$183,-A185)","v":0.99009900990099009},{"$f":"H185*G185","v":0.99009900990099009},{"$f":"H185*E185","v":5058.1782178217827}]
[2,{"$f":"B185-D185","v":95891.24},958.91,{"$f":"E186-C186","v":4149.8500000000004},{"$f":"E185*F186","v":5108.76},1,{"$f":"G185*F186","v":1},0.98029604940692083,{"$f":"H186*G186","v":0.98029604940692083},5008.0972453681015]
[3,{"$f":"B186-D186","v":91741.39},917.41,4191.3500000000004,{"$f":"E186*F187","v":5108.76},1,{"$f":"G186*F187","v":1},0.97059014792764453,0.97059014792764453,4958.5121241268334]
[4,87550.04,875.5,4233.26,5108.76,1,1,0.96098034448281622,0.96098034448281622,4909.4179446800326]
[5,{"$f":"B188-D188","v":83316.78},833.17,5297.34,{"$f":"ROUND(E188*F189,2)","v":6130.51},1.2,1.2,0.95146568760674888,1.1417588251280986,5832.9699125300504]
[6,78019.44,780.19,5350.32,6130.51,1,1.2,0.94204523525420658,1.1304542823050479,5775.2177351782666]
[7,72669.119999999995,726.69,5403.82,6130.51,1,1.2,0.93271805470713554,1.1192616656485626,5718.0373615626413]
[8,{"$f":"B191-D191","v":67265.299999999988},672.65,5457.8600000000006,6130.51,1,1.2,0.92348322248231218,1.1081798669787746,5661.4231302600401]
[9,61807.439999999988,618.07000000000005,6738.54,{"$f":"ROUND(E192*F193,2)","v":7356.61},1.2,1.44,0.91433982423991289,1.3166493469054745,6726.4414944015853]
[10,55068.899999999987,550.69000000000005,6805.92,7356.61,1,1.44,0.90528695469298315,1.3036132147578956,6659.8430637639467]
[11,48262.979999999989,482.63,6873.98,7356.61,1,1.44,0.89632371751780526,1.2907061532256396,6593.9040235286611]
[12,41388.999999999985,413.89,6942.7199999999993,7356.61,1,1.44,0.88744922526515368,1.2779268843818212,6528.6178450778816]
[13,34446.279999999984,344.46,8483.4700000000012,{"$f":"ROUND(E196*F197,2)","v":8827.93},1.2,1.728,0.87866259927242929,1.5183289715427577,7756.771919995057]
[14,25962.809999999983,259.63,8568.3000000000011,8827.93,1,1.728,0.86996296957666264,1.503296011428473,7679.9721980149079]
[15,17394.50999999998,173.95,8653.98,8827.93,1,1.728,0.86134947482837909,1.4884118925034391,7603.932869321693]
[16,8740.5299999999806,87.41,8740.52,8827.93,1,1.728,0.8528212622063156,1.4736751410925133,{"$f":"H200*E200","v":7528.6464052689998}]
[null,9.9999999802093953E-3,{"$f":"SUM(C185:C200)","v":9695.2499999999982},{"$f":"SUM(D185:D200)","v":99999.99},{"$f":"SUM(E185:E200)","v":109695.23999999999},null,null,null,{"$f":"SUM(I185:I200)","v":19.574227807616872},{"$f":"SUM(J185:J200)","v":99999.983490900471}]
[null,null,null,null,null,null,null,null,null,{"$f":"C179/I201","v":5108.758362416077}]
[7,"Table à une entrée: barême de prêts"]
[]
[null,null,"Echéancier à Échéances Constantes"]
[]
[null,"Emprunt ",100000]
[null,"Durée",5]
[null,"Échéances","Mensuelles"]
[null,"Taux",0.04]
[null,null,null,null,"Somme Intérêts actualisés"]
[null,null,"Echéance","Somme des intérêts"]
[null,null,{"$f":"H213","v":22462.711349303394},{"$f":"H214","v":12313.556746516973},{"$f":"H216","v":11236.964666810629},null,"Échéance",{"$f":"-PMT(C210,C208,C207)","v":22462.711349303394}]
[null,0.02,21215.839410432225,6079.197052161122,5804.7087723910663,null,"Somme Intérêts",{"$f":"H213*C208-C207","v":12313.556746516973}]
[null,{"$f":"B214+0.004","v":2.4E-2},21462.762318005691,7313.8115900284611,6920.1058691128128,null,"Somme Amo actua",{"$f":"(C208*H213)*POWER(1+C210,-C208-1)","v":88763.035333189371}]
[null,{"$f":"B215+0.004","v":2.8000000000000001E-2},21710.918770962435,8554.5938548121776,8020.8230984317343,null,"Somme Int actua",{"$f":"C207-H215","v":11236.964666810629}]
[null,3.2000000000000001E-2,21960.30096969138,9801.5048484568979,9107.0689452936931]
[null,3.6000000000000004E-2,22210.901102897365,11054.505514486824,10179.048731190327]
[null,4.0000000000000008E-2,22462.711349303398,12313.556746516988,11236.964666810614]
[null,4.4000000000000011E-2,22715.723879318073,13578.619396590366,12281.015903649095]
[null,4.8000000000000015E-2,22969.930856668645,14849.654283343232,13311.398584596202]
[null,5.2000000000000018E-2,23225.324439999549,16126.622199997742,14328.305893538287,{"$f":"form(E222)","v":"=TABLE(;C210)"}]
[]
[]
[null,"Table à deux entrées: Calculer l'Echéance avec une variation des taux et des durées"]
[]
[null,"nominal",100000,null,"Échéance",{"$f":"-PMT(C228,C229,C227)","v":36034.853921066118}]
[null,"taux",0.04]
[null,"durée",3,"ans"]
[]
[null,{"$f":"F227","v":36034.853921066118},1,2,3,4,5]
[null,{"$f":"B214","v":0.02},102000,51504.95049504951,34675.467259181802,26262.375267128755,21215.839410432225]
[null,{"$f":"B215","v":2.4E-2},102400.00000000001,51807.114624505935,34945.980961902977,26517.7845608393,21462.762318005691]
[null,2.8000000000000001E-2,102800.00000000001,52109.66469428008,35217.180587036244,26774.158051735179,21710.918770962435]
[null,3.2000000000000001E-2,103200,52412.598425196848,35489.06201566408,27031.489815710062,21960.30096969138]
[null,3.6000000000000004E-2,103599.99999999999,52715.913555992134,35761.621151540414,27289.773942549513,22210.901102897365]
[null,4.0000000000000008E-2,104000,53019.607843137252,36034.853921066118,27549.004536480235,22462.711349303398]
[null,4.4000000000000011E-2,104400,53323.679060665367,36308.75627326149,27809.175716703943,22715.723879318073]
[null,4.8000000000000015E-2,104800,53628.125,36583.324179735966,28070.281617916185,22969.930856668645]
[null,5.2000000000000018E-2,105200,53932.943469785576,36858.553634655233,28332.316390810276,23225.324439999549,{"$f":"form(G240)","v":"=TABLE(C229;C228)"}]

{"sheet":"FR-UK","index":9,"n_rows":460,"n_cols":9,"rows_kept":460,"cut":false,"hidden":false,"merged":[]}
["Fonctions Excel"]
[null,null,null,null,"CATEGORIE","Français","Anglais"]
[null,null,null,null,null,null,null,null,{"$f":"SUM(I4:I16)","v":450}]
[1,null,null,null,null,null,null,"CUBE",{"$f":"COUNTIF($D$11:$D$460,H4)","v":7}]
[2,null,null,null,null,null,null,"DATE",{"$f":"COUNTIF($D$11:$D$460,H5)","v":24}]
[3,null,null,"Fonctions supprimées",null,null,null,"DONNEES",12]
[4,null,null,null,null,null,null,"FINANCE",55]
[5,null,null,"Compatibilité",null,null,null,"INFORMATIONS",20]
[6,null,null,"new",null,null,null,"INGENIERIE",54]
[null,null,null,null,null,null,null,"LOGIQUE",9]
[1,null,1,"CUBE",{"$f":"LEFT(D11,3)","v":"CUB"},"JEUCUBE","CUBESET","MATHS",78]
[2,null,2,"CUBE",{"$f":"LEFT(D12,3)","v":"CUB"},"MEMBRECUBE","CUBEMEMBER","RECHERCHE",19]
[3,null,3,"CUBE","CUB","MEMBREKPICUBE","CUBEKPIMEMBER","STATS",105]
[4,null,4,"CUBE","CUB","NBJEUCUBE","CUBESETCOUNT","STATS OLD",37]
[5,null,5,"CUBE","CUB","PROPRIETEMEMBRECUBE","CUBEMEMBERPROPERTY","TEXTE",27]
[6,null,6,"CUBE","CUB","RANGMEMBRECUBE","CUBERANKEDMEMBER","WEB",3]
[7,null,7,"CUBE","CUB","VALEURCUBE","CUBEVALUE"]
[8,null,8,"DATE","DAT","ANNEE","YEAR"]
[9,null,9,"DATE","DAT","AUJOURDHUI","TODAY"]
[10,null,10,"DATE","DAT","DATE","DATE"]
[11,null,11,"DATE","DAT","DATEVAL","DATEVALUE"]
[12,null,12,"DATE","DAT","FIN.MOIS","EOMONTH"]
[13,null,13,"DATE","DAT","FRACTION.ANNEE","YEARFRAC"]
[14,null,14,"DATE","DAT","HEURE","HOUR"]
[15,null,15,"DATE","DAT","JOUR","DAY"]
[16,null,16,"DATE","DAT","JOURS","DAYS"]
[17,null,17,"DATE","DAT","JOURS360","DAYS360"]
[18,null,18,"DATE","DAT","JOURSEM","WEEKDAY"]
[19,null,19,"DATE","DAT","MAINTENANT","NOW"]
[20,null,20,"DATE","DAT","MINUTE","MINUTE"]
[21,null,21,"DATE","DAT","MOIS","MONTH"]
[22,null,22,"DATE","DAT","MOIS.DECALER","EDATE"]
[23,null,23,"DATE","DAT","NB.JOURS.OUVRES","NETWORKDAYS"]
[24,null,24,"DATE","DAT","NB.JOURS.OUVRES.INTL","NETWORKDAYS.INTL"]
[25,null,25,"DATE","DAT","NO.SEMAINE","WEEKNUM"]
[26,null,26,"DATE","DAT","NO.SEMAINE.ISO","ISOWEEKNUM"]
[27,null,27,"DATE","DAT","SECONDE","SECOND"]
[null,null,28,"DATE","DAT","SERIE.JOUR.OUVRE","WORKDAY"]
[1,null,29,"DATE","DAT","SERIE.JOUR.OUVRE.INTL","WORKDAY.INTL"]
[2,null,30,"DATE","DAT","TEMPS","TIME"]
[3,null,31,"DATE","DAT","TEMPSVAL","TIMEVALUE"]
[4,null,32,"DONNEES","DON","BDECARTYPE","DSTDEV"]
[5,null,33,"DONNEES","DON","BDECARTYPEP","DSTDEVP"]
[6,null,34,"DONNEES","DON","BDLIRE","DGET"]
[7,null,35,"DONNEES","DON","BDMAX","DMAX"]
[8,null,36,"DONNEES","DON","BDMIN","DMIN"]
[9,null,37,"DONNEES","DON","BDMOYENNE","DAVERAGE"]
[10,null,38,"DONNEES","DON","BDNB","DCOUNT"]
[11,null,39,"DONNEES","DON","BDNBVAL","DCOUNTA"]
[12,null,40,"DONNEES","DON","BDPRODUIT","DPRODUCT"]
[null,null,41,"DONNEES","DON","BDSOMME","DSUM"]
[1,null,42,"DONNEES","DON","BDVAR","DVAR"]
[2,null,43,"DONNEES","DON","BDVARP","DVARP"]
[3,null,44,"FINANCE","FIN","AMORDEGRC","AMORDEGRC"]
[4,null,45,"FINANCE","FIN","AMORLIN","SLN"]
[5,null,46,"FINANCE","FIN","AMORLINC","AMORLINC"]
[6,null,47,"FINANCE","FIN","CUMUL.INTER","CUMIPMT"]
[7,null,48,"FINANCE","FIN","CUMUL.PRINCPER","CUMPRINC"]
[7,null,49,"FINANCE","FIN","DATE.COUPON.PREC","COUPPCD"]
[8,null,50,"FINANCE","FIN","DATE.COUPON.SUIV","COUPNCD"]
[9,null,51,"FINANCE","FIN","DB","DB"]
[10,null,52,"FINANCE","FIN","DDB","DDB"]
[11,null,53,"FINANCE","FIN","DUREE","DURATION"]
[12,null,54,"FINANCE","FIN","DUREE.MODIFIEE","MDURATION"]
[13,null,55,"FINANCE","FIN","INTERET.ACC","ACCRINT"]
[null,1,56,"FINANCE","FIN","INTERET.ACC.MAT","ACCRINTM"]
[null,3,57,"FINANCE","FIN","INTPER","IPMT"]
[null,2,58,"FINANCE","FIN","ISPMT","ISPMT"]
[null,5,59,"FINANCE","FIN","NB.COUPONS","COUPNUM"]
[null,4,60,"FINANCE","FIN","NB.JOURS.COUPON.PREC","COUPDAYBS"]
[null,6,61,"FINANCE","FIN","NB.JOURS.COUPON.SUIV","COUPDAYSNC"]
[null,null,62,"FINANCE","FIN","NB.JOURS.COUPONS","COUPDAYS"]
[1,null,63,"FINANCE","FIN","NPM","NPER"]
[2,null,64,"FINANCE","FIN","PDUREE","PDURATION"]
[3,null,65,"FINANCE","FIN","PRINCPER","PPMT"]
[4,null,66,"FINANCE",{"$f":"LEFT(D76,3)","v":"FIN"},"PRIX.BON.TRESOR","TBILLPRICE"]
[5,null,67,"FINANCE","FIN","PRIX.DCOUPON.IRREG","ODDLPRICE"]
[6,null,68,"FINANCE","FIN","PRIX.DEC","DOLLARDE"]
[7,null,69,"FINANCE","FIN","PRIX.FRAC","DOLLARFR"]
[8,null,70,"FINANCE","FIN","PRIX.PCOUPON.IRREG","ODDFPRICE"]
[9,null,71,"FINANCE","FIN","PRIX.TITRE","PRICE"]
[10,null,72,"FINANCE","FIN","PRIX.TITRE.ECHEANCE","PRICEMAT"]
[11,null,73,"FINANCE","FIN","REND.DCOUPON.IRREG","ODDLYIELD"]
[12,null,74,"FINANCE","FIN","REND.PCOUPON.IRREG","ODDFYIELD"]
[13,null,75,"FINANCE","FIN","RENDEMENT.BON.TRESOR","TBILLYIELD"]
[14,null,76,"FINANCE","FIN","RENDEMENT.SIMPLE","YIELDDISC"]
[15,null,77,"FINANCE","FIN","RENDEMENT.TITRE","YIELD"]
[null,1,78,"FINANCE","FIN","RENDEMENT.TITRE.ECHEANCE","YIELDMAT"]
[null,2,79,"FINANCE","FIN","SYD","SYD"]
[null,null,80,"FINANCE","FIN","TAUX","RATE"]
[1,null,81,"FINANCE","FIN","TAUX.EFFECTIF","EFFECT"]
[2,null,82,"FINANCE","FIN","TAUX.ESCOMPTE","DISC"]
[3,null,83,"FINANCE","FIN","TAUX.ESCOMPTE.R","TBILLEQ"]
[4,null,84,"FINANCE","FIN","TAUX.INT.EQUIV","RRI"]
[5,null,85,"FINANCE","FIN","TAUX.INTERET","INTRATE"]
[6,null,86,"FINANCE","FIN","TAUX.NOMINAL","NOMINAL"]
[7,null,87,"FINANCE","FIN","TRI","IRR"]
[8,null,88,"FINANCE","FIN","TRI.PAIEMENTS","XIRR"]
[9,null,89,"FINANCE","FIN","TRIM","MIRR"]
[10,null,90,"FINANCE","FIN","VA","PV"]
[11,null,91,"FINANCE","FIN","VALEUR.ENCAISSEMENT","PRICEDISC"]
[12,null,92,"FINANCE","FIN","VALEUR.NOMINALE","RECEIVED"]
[13,null,93,"FINANCE","FIN","VAN","NPV"]
[14,null,94,"FINANCE","FIN","VAN.PAIEMENTS","XNPV"]
[15,null,95,"FINANCE","FIN","VC","FV"]
[16,null,96,"FINANCE","FIN","VC.PAIEMENTS","FVSCHEDULE"]
[17,null,97,"FINANCE","FIN","VDB","VDB"]
[18,null,98,"FINANCE","FIN","VPM","PMT"]
[19,null,99,"INFORMATIONS","INF","CELLULE","CELL"]
[20,null,100,"INFORMATIONS","INF","EST.IMPAIR","ISODD"]
[21,null,101,"INFORMATIONS","INF","EST.PAIR","ISEVEN"]
[22,null,102,"INFORMATIONS","INF","ESTERR","ISERR"]
[23,null,103,"INFORMATIONS","INF","ESTERREUR","ISERROR"]
[24,null,104,"INFORMATIONS","INF","ESTFORMULE","ISFORMULA"]
[25,null,105,"INFORMATIONS","INF","ESTLOGIQUE","ISLOGICAL"]
[26,null,106,"INFORMATIONS","INF","ESTNA","ISNA"]
[27,null,107,"INFORMATIONS","INF","ESTNONTEXTE","ISNONTEXT"]
[28,null,108,"INFORMATIONS","INF","ESTNUM","ISNUMBER"]
[29,null,109,"INFORMATIONS","INF","ESTREF","ISREF"]
[30,null,110,"INFORMATIONS","INF","ESTTEXTE","ISTEXT"]
[31,null,111,"INFORMATIONS","INF","ESTVIDE","ISBLANK"]
[32,null,112,"INFORMATIONS","INF","FEUILLE","SHEET"]
[33,null,113,"INFORMATIONS","INF","FEUILLES","SHEETS"]
[34,null,114,"INFORMATIONS","INF","INFORMATIONS","INFO"]
[35,null,115,"INFORMATIONS","INF","N","N"]
[36,null,116,"INFORMATIONS","INF","NA","NA"]
[37,null,117,"INFORMATIONS","INF","TYPE","TYPE"]
[38,null,118,"INFORMATIONS","INF","TYPE.ERREUR","ERROR.TYPE"]
[39,null,119,"INGENIERIE","ING","BESSELI","BESSELI"]
[40,null,120,"INGENIERIE","ING","BESSELJ","BESSELJ"]
[41,null,121,"INGENIERIE","ING","BESSELK","BESSELK"]
[42,null,122,"INGENIERIE","ING","BESSELY","BESSELY"]
[43,null,123,"INGENIERIE","ING","BINDEC","BIN2DEC"]
[44,null,124,"INGENIERIE","ING","BINHEX","BIN2HEX"]
[45,null,125,"INGENIERIE","ING","BINOCT","BIN2OCT"]
[46,null,126,"INGENIERIE","ING","BITDECALD","BITRSHIFT"]
[47,null,127,"INGENIERIE","ING","BITDECALG","BITLSHIFT"]
[48,null,128,"INGENIERIE","ING","BITET","BITAND"]
[49,null,129,"INGENIERIE","ING","BITOU","BITOR"]
[50,null,130,"INGENIERIE",{"$f":"LEFT(D140,3)","v":"ING"},"BITOUEXCLUSIF","BITXOR"]
[51,null,131,"INGENIERIE","ING","COMPLEXE","COMPLEX"]
[52,null,132,"INGENIERIE","ING","COMPLEXE.ARGUMENT","IMARGUMENT"]
[null,1,133,"INGENIERIE","ING","COMPLEXE.CONJUGUE","IMCONJUGATE"]
[null,2,134,"INGENIERIE","ING","COMPLEXE.COS","IMCOS"]
[null,3,135,"INGENIERIE","ING","COMPLEXE.COSH","IMCOSH"]
[null,4,136,"INGENIERIE","ING","COMPLEXE.COT","IMCOT"]
[null,5,137,"INGENIERIE","ING","COMPLEXE.CSC","IMCSC"]
[null,6,138,"INGENIERIE","ING","COMPLEXE.CSCH","IMCSCH"]
[null,7,139,"INGENIERIE","ING","COMPLEXE.DIFFERENCE","IMSUB"]
[null,null,140,"INGENIERIE","ING","COMPLEXE.DIV","IMDIV"]
[1,null,141,"INGENIERIE","ING","COMPLEXE.EXP","IMEXP"]
[2,null,142,"INGENIERIE","ING","COMPLEXE.IMAGINAIRE","IMAGINARY"]
[3,null,143,"INGENIERIE","ING","COMPLEXE.LN","IMLN"]
[4,null,144,"INGENIERIE","ING","COMPLEXE.LOG10","IMLOG10"]
[5,null,145,"INGENIERIE","ING","COMPLEXE.LOG2","IMLOG2"]
[6,null,146,"INGENIERIE","ING","COMPLEXE.MODULE","IMABS"]
[7,null,147,"INGENIERIE","ING","COMPLEXE.PRODUIT","IMPRODUCT"]
[8,null,148,"INGENIERIE","ING","COMPLEXE.PUISSANCE","IMPOWER"]
[9,null,149,"INGENIERIE","ING","COMPLEXE.RACINE","IMSQRT"]
[10,null,150,"INGENIERIE","ING","COMPLEXE.REEL","IMREAL"]
[11,null,151,"INGENIERIE","ING","COMPLEXE.SEC","IMSEC"]
[12,null,152,"INGENIERIE","ING","COMPLEXE.SECH","IMSECH"]
[13,null,153,"INGENIERIE","ING","COMPLEXE.SIN","IMSIN"]
[14,null,154,"INGENIERIE","ING","COMPLEXE.SINH","IMSINH"]
[15,null,155,"INGENIERIE","ING","COMPLEXE.SOMME","IMSUM"]
[16,null,156,"INGENIERIE","ING","COMPLEXE.TAN","IMTAN"]
[17,null,157,"INGENIERIE","ING","CONVERT","CONVERT"]
[18,null,158,"INGENIERIE","ING","DECBIN","DEC2BIN"]
[19,null,159,"INGENIERIE","ING","DECHEX","DEC2HEX"]
[20,null,160,"INGENIERIE","ING","DECOCT","DEC2OCT"]
[21,null,161,"INGENIERIE","ING","DELTA","DELTA"]
[22,null,162,"INGENIERIE","ING","ERF","ERF"]
[23,null,163,"INGENIERIE","ING","ERF.PRECIS","ERF.PRECISE"]
[24,null,164,"INGENIERIE","ING","ERFC","ERFC"]
[25,null,165,"INGENIERIE","ING","ERFC.PRECIS","ERFC.PRECISE"]
[26,null,166,"INGENIERIE","ING","HEXBIN","HEX2BIN"]
[27,null,167,"INGENIERIE","ING","HEXDEC","HEX2DEC"]
[28,null,168,"INGENIERIE","ING","HEXOCT","HEX2OCT"]
[29,null,169,"INGENIERIE","ING","OCTBIN","OCT2BIN"]
[30,null,170,"INGENIERIE","ING","OCTDEC","OCT2DEC"]
[31,null,171,"INGENIERIE","ING","OCTHEX","OCT2HEX"]
[32,null,172,"INGENIERIE","ING","SUP.SEUIL","GESTEP"]
[33,null,173,"LOGIQUE","LOG","ET","AND"]
[34,null,174,"LOGIQUE","LOG","NON","NOT"]
[35,null,175,"LOGIQUE","LOG","OU","OR"]
[36,null,176,"LOGIQUE","LOG","OUX","XOR"]
[37,null,177,"LOGIQUE","LOG","SI","IF"]
[38,null,178,"LOGIQUE","LOG","SI.NON.DISP","IFNA"]
[39,null,179,"LOGIQUE","LOG","SIERREUR","IFERROR"]
[40,null,180,"LOGIQUE","LOG",false,"FALSE"]
[41,null,181,"LOGIQUE","LOG",true,"TRUE"]
[42,null,182,"MATHS","MAT","ABS","ABS"]
[43,null,183,"MATHS","MAT","ACOS","ACOS"]
[44,null,184,"MATHS","MAT","ACOSH","ACOSH"]
[45,null,185,"MATHS","MAT","ACOT","ACOT"]
[46,null,186,"MATHS","MAT","ACOTH","ACOTH"]
[47,null,187,"MATHS","MAT","AGREGAT","AGGREGATE"]
[48,null,188,"MATHS","MAT","ALEA","RAND"]
[49,null,189,"MATHS","MAT","ALEA.ENTRE.BORNES","RANDBETWEEN"]
[50,null,190,"MATHS","MAT","ARRONDI","ROUND"]
[51,null,191,"MATHS","MAT","ARRONDI.AU.MULTIPLE","MROUND"]
[52,null,192,"MATHS","MAT","ARRONDI.INF","ROUNDDOWN"]
[53,null,193,"MATHS","MAT","ARRONDI.SUP","ROUNDUP"]
[54,null,194,"MATHS",{"$f":"LEFT(D204,3)","v":"MAT"},"ASIN","ASIN"]
[55,null,195,"MATHS","MAT","ASINH","ASINH"]
[56,null,196,"MATHS","MAT","ATAN","ATAN"]
[57,null,197,"MATHS","MAT","ATAN2","ATAN2"]
[58,null,198,"MATHS","MAT","ATANH","ATANH"]
[59,null,199,"MATHS","MAT","BASE","BASE"]
[60,null,200,"MATHS","MAT","CHIFFRE;ARABE","ARABIC"]
[61,null,201,"MATHS","MAT","COMBIN","COMBIN"]
[62,null,202,"MATHS","MAT","COMBINA","COMBINA"]
[63,null,203,"MATHS","MAT","COS","COS"]
[64,null,204,"MATHS","MAT","COSH","COSH"]
[65,null,205,"MATHS","MAT","COT","COT"]
[66,null,206,"MATHS","MAT","COTH","COTH"]
[67,null,207,"MATHS","MAT","CSC","CSC"]
[68,null,208,"MATHS","MAT","CSCH","CSCH"]
[69,null,209,"MATHS","MAT","DECIMAL","DECIMAL"]
[70,null,210,"MATHS","MAT","DEGRES","DEGREES"]
[71,null,211,"MATHS","MAT","DETERMAT","MDETERM"]
[72,null,212,"MATHS","MAT","ENT","INT"]
[73,null,213,"MATHS","MAT","EXP","EXP"]
[74,null,214,"MATHS","MAT","FACT","FACT"]
[75,null,215,"MATHS","MAT","FACTDOUBLE","FACTDOUBLE"]
[76,null,216,"MATHS","MAT","IMPAIR","ODD"]
[77,null,217,"MATHS","MAT","INVERSEMAT","MINVERSE"]
[78,null,218,"MATHS","MAT","LN","LN"]
[79,null,219,"MATHS","MAT","LOG","LOG"]
[80,null,220,"MATHS","MAT","LOG10","LOG10"]
[81,null,221,"MATHS","MAT","MATRICE.UNITAIRE","MUNIT"]
[82,null,222,"MATHS","MAT","MOD","MOD"]
[null,null,223,"MATHS","MAT","MULTINOMIALE","MULTINOMIAL"]
[null,null,224,"MATHS","MAT","PAIR","EVEN"]
[null,1,225,"MATHS","MAT","PGCD","GCD"]
[null,2,226,"MATHS","MAT","PI","PI"]
[null,3,227,"MATHS",{"$f":"LEFT(D237,3)","v":"MAT"},"PLAFOND","CEILING"]
[null,4,228,"MATHS",{"$f":"LEFT(D238,3)","v":"MAT"},"PLANCHER","FLOOR"]
[null,5,229,"MATHS","MAT","PLAFOND.MATH","CEILING.MATH"]
[null,6,230,"MATHS","MAT","PLAFOND.PRECIS","CEILING.PRECISE"]
[null,7,231,"MATHS","MAT","PLANCHER.MATH","FLOOR.MATH"]
[null,8,232,"MATHS","MAT","PLANCHER.PRECIS","FLOOR.PRECISE"]
[null,9,233,"MATHS","MAT","PPCM","LCM"]
[null,10,234,"MATHS","MAT","PRODUIT","PRODUCT"]
[null,11,235,"MATHS","MAT","PRODUITMAT","MMULT"]
[null,12,236,"MATHS","MAT","PUISSANCE","POWER"]
[null,13,237,"MATHS","MAT","QUOTIENT","QUOTIENT"]
[null,14,238,"MATHS","MAT","RACINE","SQRT"]
[null,15,239,"MATHS","MAT","RACINE.PI","SQRTPI"]
[null,16,240,"MATHS","MAT","RADIANS","RADIANS"]
[null,17,241,"MATHS","MAT","ROMAIN","ROMAN"]
[null,18,242,"MATHS","MAT","SEC","SEC"]
[null,19,243,"MATHS","MAT","SECH","SECH"]
[null,20,244,"MATHS","MAT","SIGNE","SIGN"]
[null,21,245,"MATHS","MAT","SIN","SIN"]
[null,22,246,"MATHS","MAT","SINH","SINH"]
[null,23,247,"MATHS","MAT","SOMME","SUM"]
[null,24,248,"MATHS","MAT","SOMME.CARRES","SUMSQ"]
[null,25,249,"MATHS","MAT","SOMME.SERIES","SERIESSUM"]
[null,26,250,"MATHS","MAT","SOMME.SI","SUMIF"]
[null,27,251,"MATHS","MAT","SOMME.SI.ENS","SUMIFS"]
[null,28,252,"MATHS","MAT","SOMME.X2MY2","SUMX2MY2"]
[null,29,253,"MATHS","MAT","SOMME.X2PY2","SUMX2PY2"]
[null,30,254,"MATHS","MAT","SOMME.XMY2","SUMXMY2"]
[null,31,255,"MATHS","MAT","SOMMEPROD","SUMPRODUCT"]
[null,32,256,"MATHS","MAT","SOUS.TOTAL","SUBTOTAL"]
[null,33,257,"MATHS","MAT","TAN","TAN"]
[null,34,258,"MATHS","MAT","TANH","TANH"]
[null,35,259,"MATHS","MAT","TRONQUE","TRUNC"]
[null,36,260,"RECHERCHE",{"$f":"LEFT(D270,3)","v":"REC"},"ADRESSE","ADDRESS"]
[null,37,261,"RECHERCHE","REC","CHOISIR","CHOOSE"]
[null,38,262,"RECHERCHE","REC","COLONNE","COLUMN"]
[null,39,263,"RECHERCHE","REC","COLONNES","COLUMNS"]
[null,40,264,"RECHERCHE","REC","DECALER","OFFSET"]
[null,null,265,"RECHERCHE","REC","EQUIV","MATCH"]
[1,null,266,"RECHERCHE","REC","FORMULETEXTE","FORMULATEXT"]
[2,null,267,"RECHERCHE","REC","INDEX","INDEX"]
[3,null,268,"RECHERCHE","REC","INDIRECT","INDIRECT"]
[4,null,269,"RECHERCHE","REC","LIEN_HYPERTEXTE","HYPERLINK"]
[5,null,270,"RECHERCHE","REC","LIGNE","ROW"]
[6,null,271,"RECHERCHE","REC","LIGNES","ROWS"]
[7,null,272,"RECHERCHE","REC","LIREDONNEESTABCROISDYNAMIQUE","GETPIVOTDATA"]
[8,null,273,"RECHERCHE","REC","RECHERCHE","LOOKUP"]
[9,null,274,"RECHERCHE","REC","RECHERCHEH","HLOOKUP"]
[10,null,275,"RECHERCHE","REC","RECHERCHEV","VLOOKUP"]
[11,null,276,"RECHERCHE","REC","RTD","RTD"]
[12,null,277,"RECHERCHE","REC","TRANSPOSE","TRANSPOSE"]
[13,null,278,"RECHERCHE","REC","ZONES","AREAS"]
[14,null,279,"STATS","STA","AVERAGEA","AVERAGEA"]
[15,null,280,"STATS OLD","STA","BETA.INVERSE","BETAINV"]
[16,null,281,"STATS","STA","BETA.INVERSE.N","BETA.INV"]
[17,null,282,"STATS OLD","STA","CENTILE","PERCENTILE"]
[18,null,283,"STATS","STA","CENTILE.EXCLURE","PERCENTILE.EXC"]
[null,null,284,"STATS","STA","CENTILE.INCLURE","PERCENTILE.INC"]
[5,null,285,"STATS","STA","CENTREE.REDUITE","STANDARDIZE"]
[6,null,286,"STATS","STA","CHISQ.TEST","CHISQ.TEST"]
[8,null,287,"STATS","STA","COEFFICIENT.ASYMETRIE","SKEW"]
[16,null,288,"STATS","STA","COEFFICIENT.ASYMETRIE.P","SKEW.P"]
[4,null,289,"STATS","STA","COEFFICIENT.CORRELATION","CORREL"]
[7,null,290,"STATS","STA","COEFFICIENT.DETERMINATION","RSQ"]
[9,null,291,"STATS OLD","STA","COVARIANCE","COVAR"]
[15,null,292,"STATS","STA","COVARIANCE.PEARSON","COVARIANCE.P"]
[null,15,293,"STATS","STA","COVARIANCE.STANDARD","COVARIANCE.S"]
[null,27,294,"STATS OLD","STA","CRITERE.LOI.BINOMIALE","CRITBINOM"]
[1,null,295,"STATS","STA","CROISSANCE","GROWTH"]
[2,null,296,"STATS","STA","DROITEREG","LINEST"]
[3,null,297,"STATS","STA","ECART.MOYEN","AVEDEV"]
[null,5,298,"STATS OLD","STA","ECARTYPE","STDEV"]
[null,24,299,"STATS","STA","ECARTYPE.PEARSON","STDEV.P"]
[null,1,300,"STATS","STA","ECARTYPE.STANDARD","STDEV.S"]
[10,null,301,"STATS OLD","STA","ECARTYPEP","STDEVP"]
[11,null,302,"STATS","STA","EQUATION.RANG","RANK.EQ"]
[12,null,303,"STATS","STA","ERREUR.TYPE.XY","STEYX"]
[13,null,304,"STATS","STA","F.TEST","F.TEST"]
[14,null,305,"STATS","STA","FISHER","FISHER"]
[null,11,306,"STATS","STA","FISHER.INVERSE","FISHERINV"]
[null,12,307,"STATS","STA","FREQUENCE","FREQUENCY"]
[null,18,308,"STATS","STA","GAMMA","GAMMA"]
[null,19,309,"STATS","STA","GAUSS","GAUSS"]
[null,17,310,"STATS","STA","GRANDE.VALEUR","LARGE"]
[null,21,311,"STATS OLD","STA","INTERVALLE.CONFIANCE","CONFIDENCE"]
[null,16,312,"STATS","STA","INTERVALLE.CONFIANCE.NORMAL","CONFIDENCE.NORM"]
[null,20,313,"STATS","STA","INTERVALLE.CONFIANCE.STUDENT","CONFIDENCE.T"]
[null,14,314,"STATS","STA","INVERSE.LOI.F","FINV"]
[null,13,315,"STATS","STA","INVERSE.LOI.F.DROITE","F.INV.RT"]
[null,4,316,"STATS","STA","INVERSE.LOI.F.N","F.INV"]
[null,7,317,"STATS OLD","STA","KHIDEUX.INVERSE","CHIINV"]
[null,36,318,"STATS","STA","KURTOSIS","KURT"]
[null,37,319,"STATS","STA","LNGAMMA","GAMMALN"]
[null,6,320,"STATS","STA","LNGAMMA.PRECIS","GAMMALN.PRECISE"]
[null,25,321,"STATS","STA","LOGREG","LOGEST"]
[null,10,322,"STATS OLD","STA","LOI.BETA","BETADIST"]
[null,23,323,"STATS","STA","LOI.BETA.N","BETA.DIST"]
[null,22,324,"STATS OLD",{"$f":"LEFT(D334,3)","v":"STA"},"LOI.BINOMIALE","BINOMDIST"]
[null,32,325,"STATS","STA","LOI.BINOMIALE.INVERSE","BINOM.INV"]
[null,34,326,"STATS","STA","LOI.BINOMIALE.N","BINOM.DIST"]
[null,31,327,"STATS OLD","STA","LOI.BINOMIALE.NEG","NEGBINOMDIST"]
[null,33,328,"STATS","STA","LOI.BINOMIALE.NEG.N","NEGBINOM.DIST"]
[null,30,329,"STATS","STA","LOI.BINOMIALE.SERIE","BINOM.DIST.RANGE"]
[null,8,330,"STATS OLD","STA","LOI.EXPONENTIELLE","EXPONDIST"]
[null,29,331,"STATS","STA","LOI.EXPONENTIELLE.N","EXPON.DIST"]
[null,35,332,"STATS OLD","STA","LOI.F","FDIST"]
[null,3,333,"STATS","STA","LOI.F.DROITE","F.DIST.RT"]
[null,28,334,"STATS","STA","LOI.F.N","F.DIST"]
[null,9,335,"STATS OLD","STA","LOI.GAMMA","GAMMADIST"]
[null,2,336,"STATS OLD","STA","LOI.GAMMA.INVERSE","GAMMAINV"]
[null,26,337,"STATS","STA","LOI.GAMMA.INVERSE.N","GAMMA.INV"]
[null,null,338,"STATS","STA","LOI.GAMMA.N","GAMMA.DIST"]
[1,null,339,"STATS OLD","STA","LOI.HYPERGEOMETRIQUE","HYPGEOMDIST"]
[2,null,340,"STATS","STA","LOI.HYPERGEOMETRIQUE.N","HYPGEOM.DIST"]
[3,null,341,"STATS OLD","STA","LOI.KHIDEUX","CHIDIST"]
[4,null,342,"STATS","STA","LOI.KHIDEUX.DROITE","CHISQ.DIST.RT"]
[5,null,343,"STATS","STA","LOI.KHIDEUX.INVERSE","CHISQ.INV"]
[6,null,344,"STATS","STA","LOI.KHIDEUX.INVERSE.DROITE","CHISQ.INV.RT"]
[7,null,345,"STATS","STA","LOI.KHIDEUX.N","CHISQ.DIST"]
[null,null,346,"STATS OLD","STA","LOI.LOGNORMALE","LOGNORMDIST"]
[null,null,347,"STATS OLD","STA","LOI.LOGNORMALE.INVERSE","LOGINV"]
[null,null,348,"STATS","STA","LOI.LOGNORMALE.INVERSE.N","LOGNORM.INV"]
[null,null,349,"STATS","STA","LOI.LOGNORMALE.N","LOGNORM.DIST"]
[null,null,350,"STATS OLD","STA","LOI.NORMALE","NORMDIST"]
[null,null,351,"STATS OLD","STA","LOI.NORMALE.INVERSE","NORMINV"]
[null,null,352,"STATS","STA","LOI.NORMALE.INVERSE.N","NORM.INV"]
[null,null,353,"STATS","STA","LOI.NORMALE.N","NORM.DIST"]
[null,null,354,"STATS OLD","STA","LOI.NORMALE.STANDARD","NORMSDIST"]
[null,null,355,"STATS OLD","STA","LOI.NORMALE.STANDARD.INVERSE","NORMSINV"]
[null,null,356,"STATS","STA","LOI.NORMALE.STANDARD.INVERSE.N","NORM.S.INV"]
[null,null,357,"STATS","STA","LOI.NORMALE.STANDARD.N","NORM.S.DIST"]
[null,null,358,"STATS OLD","STA","LOI.POISSON","POISSON"]
[null,null,359,"STATS","STA","LOI.POISSON.N","POISSON.DIST"]
[null,null,360,"STATS OLD","STA","LOI.STUDENT","TDIST"]
[null,null,361,"STATS","STA","LOI.STUDENT.BILATERALE","T.DIST.2T"]
[null,null,362,"STATS","STA","LOI.STUDENT.DROITE","T.DIST.RT"]
[null,null,363,"STATS OLD","STA","LOI.STUDENT.INVERSE","TINV"]
[null,null,364,"STATS","STA","LOI.STUDENT.INVERSE.BILATERALE","T.INV.2T"]
[null,null,365,"STATS","STA","LOI.STUDENT.INVERSE.N","T.INV"]
[null,null,366,"STATS","STA","LOI.STUDENT.N","T.DIST"]
[null,null,367,"STATS OLD","STA","LOI.WEIBULL","WEIBULL"]
[null,null,368,"STATS","STA","LOI.WEIBULL.N","WEIBULL.DIST"]
[null,null,369,"STATS","STA","MAX","MAX"]
[null,null,370,"STATS","STA","MAXA","MAXA"]
[null,null,371,"STATS","STA","MEDIANE","MEDIAN"]
[null,null,372,"STATS","STA","MIN","MIN"]
[null,null,373,"STATS","STA","MINA","MINA"]
[null,null,374,"STATS OLD","STA","MODE","MODE"]
[null,null,375,"STATS","STA","MODE.MULTIPLE","MODE.MULT"]
[null,null,376,"STATS","STA","MODE.SIMPLE","MODE.SNGL"]
[null,null,377,"STATS","STA","MOYENNE","AVERAGE"]
[null,null,378,"STATS","STA","MOYENNE.GEOMETRIQUE","GEOMEAN"]
[null,null,379,"STATS","STA","MOYENNE.HARMONIQUE","HARMEAN"]
[null,null,380,"STATS","STA","MOYENNE.RANG","RANK.AVG"]
[null,null,381,"STATS","STA","MOYENNE.REDUITE","TRIMMEAN"]
[null,null,382,"STATS","STA","MOYENNE.SI","AVERAGEIF"]
[null,null,383,"STATS","STA","MOYENNE.SI.ENS","AVERAGEIFS"]
[null,null,384,"STATS","STA","NB","COUNT"]
[null,null,385,"STATS","STA","NB.SI","COUNTIF"]
[null,null,386,"STATS","STA","NB.SI.ENS","COUNTIFS"]
[null,null,387,"STATS","STA","NB.VIDE","COUNTBLANK"]
[null,null,388,"STATS",{"$f":"LEFT(D398,3)","v":"STA"},"NBVAL","COUNTA"]
[null,null,389,"STATS","STA","ORDONNEE.ORIGINE","INTERCEPT"]
[null,null,390,"STATS","STA","PEARSON","PEARSON"]
[null,null,391,"STATS","STA","PENTE","SLOPE"]
[null,null,392,"STATS","STA","PERMUTATION","PERMUT"]
[null,null,393,"STATS","STA","PERMUTATIONA","PERMUTATIONA"]
[null,null,394,"STATS","STA","PETITE.VALEUR","SMALL"]
[null,null,395,"STATS","STA","PHI","PHI"]
[null,null,396,"STATS","STA","PREVISION","FORECAST"]
[null,null,397,"STATS","STA","PROBABILITE","PROB"]
[null,null,398,"STATS OLD","STA","QUARTILE","QUARTILE"]
[null,null,399,"STATS","STA","QUARTILE.EXCLURE","QUARTILE.EXC"]
[null,null,400,"STATS","STA","QUARTILE.INCLURE","QUARTILE.INC"]
[null,null,401,"STATS OLD","STA","RANG","RANK"]
[null,null,402,"STATS OLD","STA","RANG.POURCENTAGE","PERCENTRANK"]
[null,null,403,"STATS","STA","RANG.POURCENTAGE.EXCLURE","PERCENTRANK.EXC"]
[null,null,404,"STATS","STA","RANG.POURCENTAGE.INCLURE","PERCENTRANK.INC"]
[null,null,405,"STATS","STA","SOMME.CARRES.ECARTS","DEVSQ"]
[null,null,406,"STATS","STA","STDEVA","STDEVA"]
[null,null,407,"STATS","STA","STDEVPA","STDEVPA"]
[null,null,408,"STATS","STA","T.TEST","T.TEST"]
[null,null,409,"STATS","STA","TENDANCE","TREND"]
[null,null,410,"STATS OLD","STA","TEST.F","FTEST"]
[null,null,411,"STATS OLD","STA","TEST.KHIDEUX","CHITEST"]
[null,null,412,"STATS OLD","STA","TEST.STUDENT","TTEST"]
[null,null,413,"STATS OLD","STA","TEST.Z","ZTEST"]
[null,null,414,"STATS OLD","STA","VAR","VAR"]
[null,null,415,"STATS OLD","STA","VAR.P","VARP"]
[null,null,416,"STATS","STA","VAR.P.N","VAR.P"]
[null,null,417,"STATS","STA","VAR.S","VAR.S"]
[null,null,418,"STATS","STA","VARA","VARA"]
[null,null,419,"STATS","STA","VARPA","VARPA"]
[null,null,420,"STATS","STA","Z.TEST","Z.TEST"]
[null,null,421,"TEXTE","TEX","BAHTTEXT","BAHTTEXT"]
[null,null,422,"TEXTE","TEX","CAR","CHAR"]
[null,null,423,"TEXTE","TEX","CHERCHE","SEARCH"]
[null,null,424,"TEXTE","TEX","CNUM","VALUE"]
[null,null,425,"TEXTE","TEX","CODE","CODE"]
[null,null,426,"TEXTE","TEX","CONCATENER","CONCATENATE"]
[null,null,427,"TEXTE","TEX","CTXT","FIXED"]
[null,null,428,"TEXTE","TEX","DEVISE"]
[null,null,429,"TEXTE","TEX","DROITE","RIGHT"]
[null,null,430,"TEXTE","TEX","EPURAGE","CLEAN"]
[null,null,431,"TEXTE","TEX","EXACT","EXACT"]
[null,null,432,"TEXTE","TEX","GAUCHE","LEFT"]
[null,null,433,"TEXTE","TEX","MAJUSCULE","UPPER"]
[null,null,434,"TEXTE","TEX","MINUSCULE","LOWER"]
[null,null,435,"TEXTE","TEX","NBCAR","LEN"]
[null,null,436,"TEXTE","TEX","NOMPROPRE","PROPER"]
[null,null,437,"TEXTE","TEX","REMPLACER","REPLACE"]
[null,null,438,"TEXTE","TEX","REPT","REPT"]
[null,null,439,"TEXTE","TEX","STXT","MID"]
[null,null,440,"TEXTE","TEX","SUBSTITUE","SUBSTITUTE"]
[null,null,441,"TEXTE","TEX","SUPPRESPACE","TRIM"]
[null,null,442,"TEXTE","TEX","T","T"]
[null,null,443,"TEXTE","TEX","TEXTE","TEXT"]
[null,null,444,"TEXTE","TEX","TROUVE","FIND"]
[null,null,445,"TEXTE","TEX","UNICAR","UNICHAR"]
[null,null,446,"TEXTE","TEX","UNICODE","UNICODE"]
[null,null,447,"TEXTE","TEX","VALEURNOMBRE","NUMBERVALUE"]
[null,null,448,"WEB","WEB","FILTRE.XML","FILTERXML"]
[null,null,449,"WEB","WEB","SERVICEWEB","WEBSERVICE"]
[null,null,450,"WEB","WEB","URLENCODAGE","ENCODEURL"]

{"sheet":"lexique","index":10,"n_rows":454,"n_cols":4,"rows_kept":454,"cut":false,"hidden":false,"merged":[]}
["LEXIQUE"]
[]
[null,"Fonction en français","Fonction en anglais","Description de la fonction"]
["FINANCE","AMORDEGRC","AMORDEGRC","Renvoie l'amortissement correspondant à chaque période comptable en utilisant un coefficient d'amortissement."]
["FINANCE","AMORLIN","SLN","Calcule l'amortissement linéaire d'un bien pour une période donnée."]
["FINANCE","AMORLINC","AMORLINC","Renvoie l'amortissement d'un bien à la fin d'une période fiscale donnée."]
["FINANCE","CUMUL.INTER","CUMIPMT","Renvoie l'intérêt cumulé payé sur un emprunt entre deux périodes."]
["FINANCE","CUMUL.PRINCPER","CUMPRINC","Renvoie le montant cumulé des remboursements du capital d'un emprunt effectués entre deux périodes."]
["FINANCE","DATE.COUPON.PREC","COUPPCD","Renvoie la date de coupon précédant la date de règlement."]
["FINANCE","DATE.COUPON.SUIV","COUPNCD","Renvoie la première date de coupon ultérieure à la date de règlement."]
["FINANCE","DB","DB","Renvoie l'amortissement d'un bien pour une période spécifiée en utilisant la méthode de l'amortissement dégressif à taux fixe."]
["FINANCE","DDB","DDB","Renvoie l'amortissement d'un bien pour toute période spécifiée, en utilisant la méthode de l'amortissement dégressif à taux double ou selon un coefficient à spécifier."]
["FINANCE","DUREE","DURATION","Renvoie la durée, en années, d'un titre dont l'intérêt est perçu périodiquement."]
["FINANCE","DUREE.MODIFIEE","MDURATION","Renvoie la durée de Macauley modifiée pour un titre ayant une valeur nominale hypothétique de 100 euros."]
["FINANCE","INTERET.ACC","ACCRINT","Renvoie l'intérêt couru non échu d'un titre dont l'intérêt est perçu périodiquement."]
["FINANCE","INTERET.ACC.MAT","ACCRINTM","Renvoie l'intérêt couru non échu d'un titre dont l'intérêt est perçu à l'échéance."]
["FINANCE","INTPER","IPMT","Calcule le montant des intérêts d'un investissement pour une période donnée."]
["FINANCE","ISPMT","ISPMT","Calcule le montant des intérêts d'un investissement pour une période donnée."]
["FINANCE","NB.COUPONS","COUPNUM","Renvoie le nombre de coupons dus entre la date de règlement et la date d'échéance."]
["FINANCE","NB.JOURS.COUPON.PREC","COUPDAYBS","Renvoie le nombre de jours entre le début de la période de coupon et la date de liquidation."]
["FINANCE","NB.JOURS.COUPON.SUIV","COUPDAYSNC","Renvoie le nombre de jours entre la date de liquidation et la date du coupon suivant la date de liquidation."]
["FINANCE","NB.JOURS.COUPONS","COUPDAYS","Renvoie le nombre de jours pour la période du coupon contenant la date de liquidation."]
["FINANCE","NPM","NPER","Renvoie le nombre de versements nécessaires pour rembourser un emprunt."]
["FINANCE","PDUREE","PDURATION","Renvoie le nombre de périodes requises pour qu'un investissement atteigne une valeur spécifiée (2013)."]
["FINANCE","PRINCPER","PPMT","Calcule, pour une période donnée, la part de remboursement du principal d'un investissement."]
["FINANCE","PRIX.BON.TRESOR","TBILLPRICE","Renvoie le prix d'un bon du Trésor d'une valeur nominale de 100 euros."]
["FINANCE","PRIX.DCOUPON.IRREG","ODDLPRICE","Renvoie le prix par tranche de valeur nominale de 100 euros d'un titre dont la dernière période de coupon est irrégulière."]
["FINANCE","PRIX.DEC","DOLLARDE","Convertit un prix en euros, exprimé sous forme de fraction, en un prix en euros exprimé sous forme de nombre décimal."]
["FINANCE","PRIX.FRAC","DOLLARFR","Convertit un prix en euros, exprimé sous forme de nombre décimal, en un prix en euros exprimé sous forme de fraction."]
["FINANCE","PRIX.PCOUPON.IRREG","ODDFPRICE","Renvoie le prix par tranche de valeur nominale de 100 euros d'un titre dont la première période de coupon est irrégulière."]
["FINANCE","PRIX.TITRE","PRICE","Renvoie le prix d'un titre rapportant des intérêts périodiques, pour une valeur nominale de 100 euros."]
["FINANCE","PRIX.TITRE.ECHEANCE","PRICEMAT","Renvoie le prix d'un titre dont la valeur nominale est 100 euros et qui rapporte des intérêts à l'échéance."]
["FINANCE","REND.DCOUPON.IRREG","ODDLYIELD","Renvoie le taux de rendement d'un titre dont la dernière période de coupon est irrégulière."]
["FINANCE","REND.PCOUPON.IRREG","ODDFYIELD","Renvoie le taux de rendement d'un titre dont la première période de coupon est irrégulière."]
["FINANCE","RENDEMENT.BON.TRESOR","TBILLYIELD","Calcule le taux de rendement d'un bon du Trésor."]
["FINANCE","RENDEMENT.SIMPLE","YIELDDISC","Calcule le taux de rendement d'un emprunt à intérêt simple (par exemple, un bon du Trésor)."]
["FINANCE","RENDEMENT.TITRE","YIELD","Calcule le rendement d'un titre rapportant des intérêts périodiquement."]
["FINANCE","RENDEMENT.TITRE.ECHEANCE","YIELDMAT","Renvoie le rendement annuel d'un titre qui rapporte des intérêts à l'échéance."]
["FINANCE","SYD","SYD","Calcule l'amortissement d'un bien pour une période donnée sur la base de la méthode américaine Sum-of-Years Digits (amortissement dégressif à taux décroissant appliqué à une valeur constante)."]
["FINANCE","TAUX","RATE","Calcule le taux d'intérêt par période pour une annuité."]
["FINANCE","TAUX.EFFECTIF","EFFECT","Renvoie le taux d'intérêt annuel effectif."]
["FINANCE","TAUX.ESCOMPTE","DISC","Calcule le taux d'escompte d'une transaction."]
["FINANCE","TAUX.ESCOMPTE.R","TBILLEQ","Renvoie le taux d'escompte rationnel d'un bon du Trésor."]
["FINANCE","TAUX.INT.EQUIV","RRI","Renvoie un taux d'intérêt équivalent pour la croissance d'un investissement (2013)."]
["FINANCE","TAUX.INTERET","INTRATE","Affiche le taux d'intérêt d'un titre totalement investi."]
["FINANCE","TAUX.NOMINAL","NOMINAL","Calcule le taux d'intérêt nominal annuel."]
["FINANCE","TRI","IRR","Calcule le taux de rentabilité interne d'un investissement pour une succession de trésoreries."]
["FINANCE","TRI.PAIEMENTS","XIRR","Calcule le taux de rentabilité interne d'un ensemble de paiements non périodiques."]
["FINANCE","TRIM","MIRR","Calcule le taux de rentabilité interne lorsque les paiements positifs et négatifs sont financés à des taux différents."]
["FINANCE","VA","PV","Calcule la valeur actuelle d'un investissement."]
["FINANCE","VALEUR.ENCAISSEMENT","PRICEDISC","Renvoie la valeur d'encaissement d'un escompte commercial, pour une valeur nominale de 100 euros."]
["FINANCE","VALEUR.NOMINALE","RECEIVED","Renvoie la valeur nominale à échéance d'un effet de commerce."]
["FINANCE","VAN","NPV","Calcule la valeur actuelle nette d'un investissement basé sur une série de décaissements et un taux d'escompte."]
["FINANCE","VAN.PAIEMENTS","XNPV","Renvoie la valeur actuelle nette d'un ensemble de paiements non périodiques."]
["FINANCE","VC","FV","Renvoie la valeur future d'un investissement."]
["FINANCE","VC.PAIEMENTS","FVSCHEDULE","Calcule la valeur future d'un investissement en appliquant une série de taux d'intérêt composites."]
["FINANCE","VDB","VDB","Renvoie l'amortissement d'un bien pour une période spécifiée ou partielle en utilisant une méthode de l'amortissement dégressif à taux fixe."]
["FINANCE","VPM","PMT","Calcule le paiement périodique d'un investissement donné."]
["DATE","ANNEE","YEAR","Convertit un numéro de série en année."]
["DATE","AUJOURDHUI","TODAY","Renvoie le numéro de série de la date du jour."]
["DATE","DATE","DATE","Renvoie le numéro de série d'une date précise."]
["DATE","DATEVAL","DATEVALUE","Convertit une date représentée sous forme de texte en numéro de série."]
["DATE","FIN.MOIS","EOMONTH","Renvoie le numéro de série de la date du dernier jour du mois précédant ou suivant la date_départ du nombre de mois indiqué."]
["DATE","FRACTION.ANNEE","YEARFRAC","Renvoie la fraction de l'année représentant le nombre de jours entre la date de début et la date de fin."]
["DATE","HEURE","HOUR","Convertit un numéro de série en heure."]
["DATE","JOUR","DAY","Convertit un numéro de série en jour du mois."]
["DATE","JOURS","DAYS","Renvoie le nombre de jours entre deux dates (2013)."]
["DATE","JOURS360","DAYS360","Calcule le nombre de jours qui séparent deux dates sur la base d'une année de 360 jours."]
["DATE","JOURSEM","WEEKDAY","Convertit un numéro de série en jour de la semaine."]
["DATE","MAINTENANT","NOW","Renvoie le numéro de série de la date et de l'heure du jour."]
["DATE","MINUTE","MINUTE","Convertit un numéro de série en minute."]
["DATE","MOIS","MONTH","Convertit un numéro de série en mois."]
["DATE","MOIS.DECALER","EDATE","Renvoie le numéro de série de la date qui représente une date spécifiée (l'argument date_départ), corrigée en plus ou en moins du nombre de mois indiqué."]
["DATE","NB.JOURS.OUVRES","NETWORKDAYS","Renvoie le nombre de jours ouvrés entiers compris entre deux dates."]
["DATE","NB.JOURS.OUVRES.INTL","NETWORKDAYS.INTL","Renvoie le nombre de jours ouvrés entiers compris entre deux dates à l'aide de paramètres identifiant les jours du week-end et leur nombre."]
["DATE","NO.SEMAINE","WEEKNUM","Convertit un numéro de série en un numéro représentant l'ordre de la semaine dans l'année."]
["DATE","NO.SEMAINE.ISO","ISOWEEKNUM","Renvoie le numéro de la semaine ISO de l'année pour une date donnée (2013)."]
["DATE","SECONDE","SECOND","Convertit un numéro de série en seconde."]
["DATE","SERIE.JOUR.OUVRE","WORKDAY","Renvoie le numéro de série de la date avant ou après le nombre de jours ouvrés spécifiés."]
["DATE","SERIE.JOUR.OUVRE.INTL","WORKDAY.INTL","Renvoie le numéro de série de la date avant ou après un nombre spécifié de jours ouvrés en spécifiant des paramètres qui identifient et dénombrent les jours inclus dans le week-end."]
["DATE","TEMPS","TIME","Renvoie le numéro de série d'une heure précise."]
["DATE","TEMPSVAL","TIMEVALUE","Convertit une date représentée sous forme de texte en numéro de série."]
["MATHS","ABS","ABS","Renvoie la valeur absolue d'un nombre."]
["MATHS","ACOS","ACOS","Renvoie l'arccosinus d'un nombre."]
["MATHS","ACOSH","ACOSH","Renvoie le cosinus hyperbolique inverse d'un nombre."]
["MATHS","ACOT","ACOT","Renvoie l'arccotangente d'un nombre (2013)."]
["MATHS","ACOTH","ACOTH","Renvoie l'arccotangente hyperbolique d'un nombre (2013)."]
["MATHS","AGREGAT","AGGREGATE","Renvoie un sous-total dans une liste ou une base de données."]
["MATHS","ALEA","RAND","Renvoie un nombre aléatoire compris entre 0 et 1."]
["MATHS","ALEA.ENTRE.BORNES","RANDBETWEEN","Renvoie un nombre aléatoire entre les nombres que vous spécifiez."]
["MATHS","ARABE","ARABIC","Convertit un nombre romain en nombre arabe (2013)."]
["MATHS","ARRONDI","ROUND","Arrondit un nombre au nombre de chiffres indiqué."]
["MATHS","ARRONDI.AU.MULTIPLE","MROUND","Donne l'arrondi d'un nombre au multiple spécifié."]
["MATHS","ARRONDI.INF","ROUNDDOWN","Arrondit un nombre en tendant vers 0 (zéro)."]
["MATHS","ARRONDI.SUP","ROUNDUP","Arrondit un nombre à l'entier supérieur, en s'éloignant de zéro."]
["MATHS","ASIN","ASIN","Renvoie l'arcsinus d'un nombre."]
["MATHS","ASINH","ASINH","Renvoie le sinus hyperbolique inverse d'un nombre."]
["MATHS","ATAN","ATAN","Renvoie l'arctangente d'un nombre."]
["MATHS","ATAN2","ATAN2","Renvoie l'arctangente des coordonnées x et y."]
["MATHS","ATANH","ATANH","Renvoie la tangente hyperbolique inverse d'un nombre."]
["MATHS","BASE","BASE","Convertit un nombre en une représentation textuelle avec la base donnée (2013)."]
["MATHS","COMBIN","COMBIN","Renvoie le nombre de combinaisons que l'on peut former avec un nombre donné d'objets."]
["MATHS","COMBINA","COMBINA","Renvoie le nombre de combinaisons avec répétitions pour un nombre d'éléments donné (2013)."]
["MATHS","COS","COS","Renvoie le cosinus d'un nombre."]
["MATHS","COSH","COSH","Renvoie le cosinus hyperbolique d'un nombre."]
["MATHS","COT","COT","Renvoie le cosinus hyperbolique d'un nombre (2013)."]
["MATHS","COTH","COTH","Renvoie la cotangente d'un angle (2013)."]
["MATHS","CSC","CSC","Renvoie la cosécante d'un angle (2013)."]
["MATHS","CSCH","CSCH","Renvoie la cosécante hyperbolique d'un angle (2013)."]
["MATHS","DECIMAL","DECIMAL","Convertit une représentation textuelle d'un nombre dans une base donnée en nombre décimal (2013)."]
["MATHS","DEGRES","DEGREES","Convertit des radians en degrés."]
["MATHS","DETERMAT","MDETERM","Renvoie le déterminant d'une matrice."]
["MATHS","ENT","INT","Arrondit un nombre à l'entier immédiatement inférieur."]
["MATHS","EXP","EXP","Renvoie e élevé à la puissance d'un nombre donné."]
["MATHS","FACT","FACT","Renvoie la factorielle d'un nombre."]
["MATHS","FACTDOUBLE","FACTDOUBLE","Renvoie la factorielle double d'un nombre."]
["MATHS","IMPAIR","ODD","Renvoie le nombre, arrondi à la valeur du nombre entier impair le plus proche en s'éloignant de zéro."]
["MATHS","INVERSEMAT","MINVERSE","Renvoie la matrice inverse d'une matrice."]
["MATHS","LN","LN","Renvoie le logarithme népérien d'un nombre."]
["MATHS","LOG","LOG","Renvoie le logarithme d'un nombre dans la base spécifiée."]
["MATHS","LOG10","LOG10","Calcule le logarithme en base 10 d'un nombre."]
["MATHS","MATRICE.UNITAIRE","MUNIT","Renvoie la matrice unitaire ou la dimension spécifiée (2013)."]
["MATHS","MOD","MOD","Renvoie le reste d'une division."]
["MATHS","MULTINOMIALE","MULTINOMIAL","Calcule la multinomiale d'un ensemble de nombres."]
["MATHS","PAIR","EVEN","Arrondit un nombre au nombre entier pair le plus proche en s'éloignant de zéro."]
["MATHS","PGCD","GCD","Renvoie le plus grand commun diviseur."]
["MATHS","PI","PI","Renvoie la valeur de pi."]
["MATHS","PLAFOND","CEILING","Arrondit un nombre au nombre entier le plus proche ou au multiple le plus proche de l'argument précision en s'éloignant de zéro."]
["MATHS","PLAFOND.MATH","CEILING.MATH","Arrondit un nombre au nombre entier supérieur le plus proche ou au multiple le plus proche de l'argument précision en s'éloignant de zéro (2013)."]
["MATHS","PLAFOND.PRECIS","CEILING.PRECISE","Arrondit un nombre au nombre entier le plus proche ou au multiple le plus proche de l'argument précision en s'éloignant de zéro. Quel que soit son signe, ce nombre est arrondi à l'entier supérieur."]
["MATHS","PLANCHER","FLOOR","Arrondit un nombre en tendant vers 0 (zéro)."]
["MATHS","PLANCHER.MATH","FLOOR.MATH","Arrondit un nombre au nombre entier inférieur le plus proche ou au multiple le plus proche de l'argument précision en tendant vers zéro (2013)."]
["MATHS","PLANCHER.PRECIS","FLOOR.PRECISE","Arrondit un nombre au nombre entier le plus proche ou au multiple le plus proche de l'argument précision en s'éloignant de zéro. Quel que soit son signe, ce nombre est arrondi à l'entier supérieur."]
["MATHS","PPCM","LCM","Renvoie le plus petit commun multiple."]
["MATHS","PRODUIT","PRODUCT","Multiplie ses arguments."]
["MATHS","PRODUITMAT","MMULT","Renvoie le produit de deux matrices."]
["MATHS","PUISSANCE","POWER","Renvoie la valeur du nombre élevé à une puissance."]
["MATHS","QUOTIENT","QUOTIENT","Renvoie la partie entière du résultat d'une division."]
["MATHS","RACINE","SQRT","Renvoie la racine carrée d'un nombre."]
["MATHS","RACINE.PI","SQRTPI","Renvoie la racine carrée de (nombre * pi)."]
["MATHS","RADIANS","RADIANS","Convertit des degrés en radians."]
["MATHS","ROMAIN","ROMAN","Convertit des chiffres arabes en chiffres romains, sous forme de texte."]
["MATHS","SEC","SEC","Renvoie la sécante d'un angle (2013)."]
["MATHS","SECH","SECH","Renvoie la sécante hyperbolique d'un angle (2013)."]
["MATHS","SIGNE","SIGN","Renvoie le signe d'un nombre."]
["MATHS","SIN","SIN","Renvoie le sinus d'un angle donné."]
["MATHS","SINH","SINH","Renvoie le sinus hyperbolique d'un nombre."]
["MATHS","SOMME","SUM","Calcule la somme de ses arguments."]
["MATHS","SOMME.CARRES","SUMSQ","Renvoie la somme des carrés des arguments."]
["MATHS","SOMME.SERIES","SERIESSUM","Renvoie la somme d'une série géométrique en s'appuyant sur une formule."]
["MATHS","SOMME.SI","SUMIF","Additionne les cellules spécifiées si elles répondent à un critère donné."]
["MATHS","SOMME.SI.ENS","SUMIFS","Ajoute les cellules d'une plage qui répondent à plusieurs critères."]
["MATHS","SOMME.X2MY2","SUMX2MY2","Renvoie la somme de la différence des carrés des valeurs correspondantes de deux matrices."]
["MATHS","SOMME.X2PY2","SUMX2PY2","Renvoie la somme de la somme des carrés des valeurs correspondantes de deux matrices."]
["MATHS","SOMME.XMY2","SUMXMY2","Renvoie la somme des carrés des différences entre les valeurs correspondantes de deux matrices."]
["MATHS","SOMMEPROD","SUMPRODUCT","Multiplie les valeurs correspondantes des matrices spécifiées et calcule la somme de ces produits."]
["MATHS","SOUS.TOTAL","SUBTOTAL","Renvoie un sous-total dans une liste ou une base de données."]
["MATHS","TAN","TAN","Renvoie la tangente d'un nombre."]
["MATHS","TANH","TANH","Renvoie la tangente hyperbolique d'un nombre."]
["MATHS","TRONQUE","TRUNC","Renvoie la partie entière d'un nombre."]
["STATS","AVERAGEA","AVERAGEA","Renvoie la moyenne de ses arguments, nombres, texte et valeurs logiques inclus."]
["STATS","BETA.INVERSE.N","BETA.INV","Renvoie l'inverse de la fonction de distribution cumulée pour une distribution bêta spécifiée."]
["STATS","CENTILE.EXCLURE","PERCENTILE.EXC","Renvoie le k-ième centile des valeurs d'une plage, où k se trouve dans la plage comprise entre 0 et 1, exclues."]
["STATS","CENTILE.INCLURE","PERCENTILE.INC","Renvoie le k-ième centile des valeurs d'une plage."]
["STATS","CENTREE.REDUITE","STANDARDIZE","Renvoie une valeur centrée réduite."]
["STATS","CHISQ.TEST","CHISQ.TEST","Renvoie le test d'indépendance."]
["STATS","COEFFICIENT.ASYMETRIE","SKEW","Renvoie l'asymétrie d'une distribution."]
["STATS","COEFFICIENT.ASYMETRIE.P","SKEW.P","Renvoie l'asymétrie d'une distribution : la caractérisation du degré d'asymétrie d'une distribution par rapport à sa moyenne (2013)."]
["STATS","COEFFICIENT.CORRELATION","CORREL","Renvoie le coefficient de corrélation entre deux séries de données."]
["STATS","COEFFICIENT.DETERMINATION","RSQ","Renvoie la valeur du coefficient de détermination R^2 d'une régression linéaire."]
["STATS","COVARIANCE.PEARSON","COVARIANCE.P","Renvoie la covariance, moyenne des produits des écarts pour chaque série d'observations."]
["STATS","COVARIANCE.STANDARD","COVARIANCE.S","Renvoie la covariance d'échantillon, moyenne des produits des écarts pour chaque paire de points de deux jeux de données."]
["STATS","CROISSANCE","GROWTH","Calcule des valeurs par rapport à une tendance exponentielle."]
["STATS","DROITEREG","LINEST","Renvoie les paramètres d'une tendance linéaire."]
["STATS","ECART.MOYEN","AVEDEV","Renvoie la moyenne des écarts absolus observés dans la moyenne des points de données."]
["STATS","ECARTYPE.PEARSON","STDEV.P","Calcule l'écart type d'une population à partir de la population entière."]
["STATS","ECARTYPE.STANDARD","STDEV.S","Evalue l'écart type d'une population en se basant sur un échantillon de cette population."]
["STATS","EQUATION.RANG","RANK.EQ","Renvoie le rang d'un nombre contenu dans une liste."]
["STATS","ERREUR.TYPE.XY","STEYX","Renvoie l'erreur type de la valeur y prévue pour chaque x de la régression."]
["STATS","F.TEST","F.TEST","Renvoie le résultat d'un test F."]
["STATS","FISHER","FISHER","Renvoie la transformation de Fisher."]
["STATS","FISHER.INVERSE","FISHERINV","Renvoie l'inverse de la transformation de Fisher."]
["STATS","FREQUENCE","FREQUENCY","Calcule la fréquence d'apparition des valeurs dans une plage de valeurs, puis renvoie des nombres sous forme de matrice verticale."]
["STATS","GAMMA","GAMMA","Renvoie la valeur de fonction Gamma (2013)."]
["STATS","GAUSS","GAUSS","Renvoie 0.5 de moins que la distribution cumulée normale standard (2013)."]
["STATS","GRANDE.VALEUR","LARGE","Renvoie la k-ième plus grande valeur d'une série de données."]
["STATS","INTERVALLE.CONFIANCE.NORMAL","CONFIDENCE.NORM","Renvoie l'intervalle de confiance pour une moyenne de population."]
["STATS","INTERVALLE.CONFIANCE.STUDENT","CONFIDENCE.T","Renvoie l'intervalle de confiance pour la moyenne d'une population, à l'aide d'une distribution t de Student."]
["STATS","INVERSE.LOI.F","FINV","Renvoie l'inverse de la distribution de probabilité F."]
["STATS","INVERSE.LOI.F.DROITE","F.INV.RT","Renvoie l'inverse de la distribution de probabilité F."]
["STATS","INVERSE.LOI.F.N","F.INV","Renvoie l'inverse de la distribution de probabilité F."]
["STATS","KURTOSIS","KURT","Renvoie le kurtosis d'une série de données."]
["STATS","LNGAMMA","GAMMALN","Renvoie le logarithme népérien de la fonction Gamma, G(x)"]
["STATS","LNGAMMA.PRECIS","GAMMALN.PRECISE","Renvoie le logarithme népérien de la fonction Gamma, G(x)."]
["STATS","LOGREG","LOGEST","Renvoie les paramètres d'une tendance exponentielle."]
["STATS","LOI.BETA.N","BETA.DIST","Renvoie la fonction de distribution cumulée."]
["STATS","LOI.BINOMIALE.INVERSE","BINOM.INV","Renvoie la plus petite valeur pour laquelle la distribution binomiale cumulée est inférieure ou égale à une valeur de critère."]
["STATS","LOI.BINOMIALE.N","BINOM.DIST","Renvoie la probabilité d'une variable aléatoire discrète suivant la loi binomiale."]
["STATS","LOI.BINOMIALE.NEG.N","NEGBINOM.DIST","Renvoie la probabilité d'une variable aléatoire discrète suivant une loi binomiale négative."]
["STATS","LOI.BINOMIALE.SERIE","BINOM.DIST.RANGE","Renvoie la probabilité d'un résultat d'essai à l'aide d'une distribution binomiale (2013)."]
["STATS","LOI.EXPONENTIELLE.N","EXPON.DIST","Renvoie la distribution exponentielle."]
["STATS","LOI.F.DROITE","F.DIST.RT","Renvoie la distribution de probabilité F."]
["STATS","LOI.F.N","F.DIST","Renvoie la distribution de probabilité F."]
["STATS","LOI.GAMMA.INVERSE.N","GAMMA.INV","Renvoie, pour une probabilité donnée, la valeur d'une variable aléatoire suivant une loi Gamma."]
["STATS","LOI.GAMMA.N","GAMMA.DIST","Renvoie la probabilité d'une variable aléatoire suivant une loi Gamma."]
["STATS","LOI.HYPERGEOMETRIQUE.N","HYPGEOM.DIST","Renvoie la probabilité d'une variable aléatoire discrète suivant une loi hypergéométrique."]
["STATS","LOI.KHIDEUX.DROITE","CHISQ.DIST.RT","Renvoie la probabilité unilatérale de la distribution khi-deux."]
["STATS","LOI.KHIDEUX.INVERSE","CHISQ.INV","Renvoie la fonction de densité de distribution de la probabilité suivant une loi bêta cumulée."]
["STATS","LOI.KHIDEUX.INVERSE.DROITE","CHISQ.INV.RT","Renvoie l'inverse de la probabilité unilatérale de la distribution khi-deux."]
["STATS","LOI.KHIDEUX.N","CHISQ.DIST","Renvoie la fonction de densité de distribution de la probabilité suivant une loi bêta cumulée."]
["STATS","LOI.LOGNORMALE.INVERSE.N","LOGNORM.INV","Renvoie l'inverse de la fonction de distribution suivant une loi lognormale cumulée."]
["STATS","LOI.LOGNORMALE.N","LOGNORM.DIST","Renvoie la probabilité d'une variable aléatoire continue suivant une loi lognormale."]
["STATS","LOI.NORMALE.INVERSE.N","NORM.INV","Renvoie, pour une probabilité donnée, la valeur d'une variable aléatoire suivant une loi normale."]
["STATS","LOI.NORMALE.N","NORM.DIST","Renvoie la probabilité d'une variable aléatoire continue suivant une loi normale."]
["STATS","LOI.NORMALE.STANDARD.INVERSE.N","NORM.S.INV","Renvoie l'inverse de la distribution cumulée normale standard."]
["STATS","LOI.NORMALE.STANDARD.N","NORM.S.DIST","Renvoie la probabilité d'une variable aléatoire continue suivant une loi normale standard."]
["STATS","LOI.POISSON.N","POISSON.DIST","Renvoie la probabilité d'une variable aléatoire suivant une loi de Poisson."]
["STATS","LOI.STUDENT.BILATERALE","T.DIST.2T","Renvoie la probabilité d'une variable aléatoire suivant la loi T de Student."]
["STATS","LOI.STUDENT.DROITE","T.DIST.RT","Renvoie la probabilité d'une variable aléatoire suivant la loi T de Student."]
["STATS","LOI.STUDENT.INVERSE.BILATERALE","T.INV.2T","Renvoie, pour une probabilité donnée, la valeur d'une variable aléatoire suivant la loi T de Student."]
["STATS","LOI.STUDENT.INVERSE.N","T.INV","Renvoie la valeur d'une variable aléatoire suivant la loi de t de Student, en fonction de la probabilité et du nombre de degrés de liberté."]
["STATS","LOI.STUDENT.N","T.DIST","Renvoie la probabilité d'une variable aléatoire suivant la loi T de Student."]
["STATS","LOI.WEIBULL.N","WEIBULL.DIST","Renvoie la probabilité d'une variable aléatoire suivant une loi de Weibull."]
["STATS"]
["STATS","MAX","MAX","Renvoie la valeur maximale contenue dans une liste d'arguments."]
["STATS","MAXA","MAXA","Renvoie la valeur maximale d'une liste d'arguments, nombres, texte et valeurs logiques inclus."]
["STATS","MEDIANE","MEDIAN","Renvoie la valeur médiane des nombres donnés."]
["STATS","MIN","MIN","Renvoie la valeur minimale contenue dans une liste d'arguments."]
["STATS","MINA","MINA","Renvoie la plus petite valeur d'une liste d'arguments, nombres, texte et valeurs logiques inclus."]
["STATS","MODE.MULTIPLE","MODE.MULT","Renvoie une matrice verticale des valeurs les plus fréquentes ou répétitives dans une matrice ou une plage de données."]
["STATS","MODE.SIMPLE","MODE.SNGL","Renvoie la valeur la plus courante d'une série de données."]
["STATS","MOYENNE","AVERAGE","Renvoie la moyenne de ses arguments."]
["STATS","MOYENNE.GEOMETRIQUE","GEOMEAN","Renvoie la moyenne géométrique."]
["STATS","MOYENNE.HARMONIQUE","HARMEAN","Renvoie la moyenne harmonique."]
["STATS","MOYENNE.RANG","RANK.AVG","Renvoie le rang d'un nombre contenu dans une liste."]
["STATS","MOYENNE.REDUITE","TRIMMEAN","Renvoie la moyenne de l'intérieur d'une série de données."]
["STATS","MOYENNE.SI","AVERAGEIF","Renvoie la moyenne (arithmétique) de toutes les cellules d'une plage qui répondent à des critères donnés."]
["STATS","MOYENNE.SI.ENS","AVERAGEIFS","Renvoie la moyenne (arithmétique) de toutes les cellules qui répondent à plusieurs critères."]
["STATS","NB","COUNT","Détermine les nombres compris dans la liste des arguments."]
["STATS","NB.SI","COUNTIF","Compte le nombre de cellules qui répondent à un critère donné dans une plage."]
["STATS","NB.SI.ENS","COUNTIFS","Compte le nombre de cellules à l'intérieur d'une plage qui répondent à plusieurs critères."]
["STATS","NB.VIDE","COUNTBLANK","Compte le nombre de cellules vides dans une plage."]
["STATS","NBVAL","COUNTA","Détermine le nombre de valeurs comprises dans la liste des arguments."]
["STATS","ORDONNEE.ORIGINE","INTERCEPT","Renvoie l'ordonnée à l'origine d'une droite de régression linéaire."]
["STATS","PEARSON","PEARSON","Renvoie le coefficient de corrélation d'échantillonnage de Pearson."]
["STATS","PENTE","SLOPE","Renvoie la pente d'une droite de régression linéaire."]
["STATS","PERMUTATION","PERMUT","Renvoie le nombre de permutations pour un nombre donné d'objets."]
["STATS","PERMUTATIONA","PERMUTATIONA","Renvoie le nombre de permutations pour un nombre d'objets donné (avec répétitions) pouvant être sélectionnés à partir du nombre total d'objets (2013)."]
["STATS","PETITE.VALEUR","SMALL","Renvoie la k-ième plus petite valeur d'une série de données."]
["STATS","PHI","PHI","Renvoie la valeur de la fonction de densité pour une distribution normale standard (2013)."]
["STATS","PREVISION","FORECAST","Calcule une valeur par rapport à une tendance linéaire."]
["STATS","PROBABILITE","PROB","Renvoie la probabilité que des valeurs d'une plage soient comprises entre deux limites."]
["STATS","QUARTILE.EXCLURE","QUARTILE.EXC","Renvoie le quartile d'un jeu de données en fonction des valeurs du centile comprises entre 0..1, exclues."]
["STATS","QUARTILE.INCLURE","QUARTILE.INC","Renvoie le quartile d'une série de données."]
["STATS","RANG.POURCENTAGE.EXCLURE","PERCENTRANK.EXC","Renvoie le rang d'une valeur d'un jeu de données sous forme de pourcentage (0..1, exclues)."]
["STATS","RANG.POURCENTAGE.INCLURE","PERCENTRANK.INC","Renvoie le rang en pourcentage d'une valeur d'une série de données."]
["STATS","SOMME.CARRES.ECARTS","DEVSQ","Renvoie la somme des carrés des écarts."]
["STATS","STDEVA","STDEVA","Evalue l'écart type d'une population en se basant sur un échantillon de cette population, nombres, texte et valeurs logiques inclus."]
["STATS","STDEVPA","STDEVPA","Calcule l'écart type d'une population à partir de l'ensemble de la population, nombres, texte et valeurs logiques inclus."]
["STATS","T.TEST","T.TEST","Renvoie la probabilité associée à un test T de Student."]
["STATS","TENDANCE","TREND","Renvoie des valeurs par rapport à une tendance linéaire."]
["STATS","VAR.P.N","VAR.P","Calcule la variance sur la base de l'ensemble de la population."]
["STATS","VAR.S","VAR.S","Calcule la variance sur la base d'un échantillon."]
["STATS","VARA","VARA","Estime la variance d'une population en se basant sur un échantillon de cette population, nombres, texte et valeurs logiques inclus."]
["STATS","VARPA","VARPA","Calcule la variance d'une population en se basant sur la population entière, nombres, texte et valeurs logiques inclus."]
["STATS","Z.TEST","Z.TEST","Renvoie la valeur de probabilité unilatérale d'un test Z."]
["RECHERCHE","ADRESSE","ADDRESS","Renvoie une référence sous forme de texte à une seule cellule d'une feuille de calcul."]
["RECHERCHE","CHOISIR","CHOOSE","Choisit une valeur dans une liste."]
["RECHERCHE","COLONNE","COLUMN","Renvoie le numéro de colonne d'une référence."]
["RECHERCHE","COLONNES","COLUMNS","Renvoie le nombre de colonnes dans une référence."]
["RECHERCHE","DECALER","OFFSET","Renvoie une référence décalée par rapport à une référence donnée."]
["RECHERCHE","EQUIV","MATCH","Recherche des valeurs dans une référence ou une matrice."]
["RECHERCHE","FORMULETEXTE","FORMULATEXT","Renvoie la formule à la référence donnée sous forme de texte (2013)."]
["RECHERCHE","INDEX","INDEX","Utilise un index pour choisir une valeur provenant d'une référence ou d'une matrice."]
["RECHERCHE","INDIRECT","INDIRECT","Renvoie une référence indiquée par une valeur de texte."]
["RECHERCHE","LIEN_HYPERTEXTE","HYPERLINK","Crée un raccourci ou un renvoi qui ouvre un document stocké sur un serveur réseau, sur un réseau Intranet ou sur Internet."]
["RECHERCHE","LIGNE","ROW","Renvoie le numéro de ligne d'une référence."]
["RECHERCHE","LIGNES","ROWS","Renvoie le nombre de lignes dans une référence."]
["RECHERCHE","LIREDONNEESTABCROISDYNAMIQUE","GETPIVOTDATA","Renvoie les données stockées dans un rapport de tableau croisé dynamique."]
["RECHERCHE","RECHERCHE","LOOKUP","Recherche des valeurs dans un vecteur ou une matrice."]
["RECHERCHE","RECHERCHEH","HLOOKUP","Effectue une recherche dans la première ligne d'une matrice et renvoie la valeur de la cellule indiquée."]
["RECHERCHE","RECHERCHEV","VLOOKUP","Effectue une recherche dans la première colonne d'une matrice et se déplace sur la ligne pour renvoyer la valeur d'une cellule."]
["RECHERCHE","RTD","RTD","Extrait les données en temps réel à partir d'un programme prenant en charge l'automation COM"]
["RECHERCHE","TRANSPOSE","TRANSPOSE","Renvoie la transposition d'une matrice."]
["RECHERCHE","ZONES","AREAS","Renvoie le nombre de zones dans une référence."]
["DONNEES","BDECARTYPE","DSTDEV","Calcule l'écart type pour un échantillon d'entrées de base de données sélectionnées."]
["DONNEES","BDECARTYPEP","DSTDEVP","Calcule l'écart type pour l'ensemble d'une population d'entrées de base de données sélectionnées."]
["DONNEES","BDLIRE","DGET","Extrait d'une base de données un enregistrement unique répondant aux critères spécifiés."]
["DONNEES","BDMAX","DMAX","Renvoie la valeur maximale des entrées de base de données sélectionnées."]
["DONNEES","BDMIN","DMIN","Renvoie la valeur minimale des entrées de base de données sélectionnées."]
["DONNEES","BDMOYENNE","DAVERAGE","Renvoie la moyenne des entrées de base de données sélectionnées."]
["DONNEES","BDNB","DCOUNT","Compte le nombre de cellules d'une base de données qui contiennent des nombres."]
["DONNEES","BDNBVAL","DCOUNTA","Compte les cellules non vides d'une base de données."]
["DONNEES","BDPRODUIT","DPRODUCT","Multiplie les valeurs d'un champ particulier des enregistrements d'une base de données, qui répondent aux critères spécifiés."]
["DONNEES","BDSOMME","DSUM","Ajoute les nombres dans la colonne de champ des enregistrements de la base de données, qui répondent aux critères."]
["DONNEES","BDVAR","DVAR","Calcule la variance pour un échantillon d'entrées de base de données sélectionnées."]
["DONNEES","BDVARP","DVARP","Calcule la variance pour l'ensemble d'une population d'entrées de base de données sélectionnées."]
["TEXTE","BAHTTEXT","BAHTTEXT","Convertit un nombre en texte en utilisant le format monétaire ß (baht)."]
["TEXTE","CAR","CHAR","Renvoie le caractère spécifié par le code numérique."]
["TEXTE","CHERCHE","SEARCH","Trouve un texte dans un autre texte (sans respecter la casse)."]
["TEXTE","CNUM","VALUE","Convertit un argument textuel en nombre."]
["TEXTE","CODE","CODE","Renvoie le numéro de code du premier caractère d'une chaîne de texte."]
["TEXTE","CONCATENER","CONCATENATE","Assemble plusieurs éléments textuels de façon à n'en former qu'un seul."]
["TEXTE","CTXT","FIXED","Convertit un nombre au format texte avec un nombre de décimales spécifié."]
["TEXTE","DROITE","RIGHT","Renvoie des caractères situés à l'extrême droite d'une chaîne de caractères."]
["TEXTE","EPURAGE","CLEAN","Supprime tous les caractères de contrôle du texte."]
["TEXTE","EXACT","EXACT","Vérifie si deux valeurs de texte sont identiques."]
["TEXTE","FRANC","DOLLAR","Convertit un nombre en texte en utilisant le format monétaire."]
["TEXTE","GAUCHE","LEFT","Renvoie des caractères situés à l'extrême gauche d'une chaîne de caractères."]
["TEXTE","MAJUSCULE","UPPER","Convertit le texte en majuscules."]
["TEXTE","MINUSCULE","LOWER","Convertit le texte en minuscules."]
["TEXTE","NBCAR","LEN","Renvoie le nombre de caractères contenus dans une chaîne de texte."]
["TEXTE","NOMPROPRE","PROPER","Met en majuscules la première lettre de chaque mot dans une chaîne textuelle."]
["TEXTE","REMPLACER","REPLACE","Remplace des caractères dans un texte."]
["TEXTE","REPT","REPT","Répète un texte un certain nombre de fois."]
["TEXTE","STXT","MID","Renvoie un nombre déterminé de caractères d'une chaîne de texte à partir de la position que vous indiquez."]
["TEXTE","SUBSTITUE","SUBSTITUTE","Remplace l'ancien texte d'une chaîne de caractères par un nouveau."]
["TEXTE","SUPPRESPACE","TRIM","Supprime les espaces du texte."]
["TEXTE","T","T","Convertit ses arguments en texte."]
["TEXTE","TEXTE","TEXT","Convertit un nombre au format texte."]
["TEXTE","TROUVE","FIND","Trouve une valeur textuelle dans une autre, en respectant la casse."]
["TEXTE","UNICAR","UNICHAR","Renvoie le caractère référencé par la valeur numérique donnée (2013)."]
["TEXTE","UNICODE","UNICODE","Renvoie le nombre (point de code) qui correspond au premier caractère du texte (2013)."]
["TEXTE","VALEURNOMBRE","NUMBERVALUE","Convertit du texte en nombre d'une manière indépendante des paramètres régionaux (2013)."]
["LOGIQUE","ET","AND","Renvoie VRAI si tous ses arguments sont VRAI."]
["LOGIQUE",false,"FALSE","Renvoie la valeur logique FAUX."]
["LOGIQUE","NON","NOT","Inverse la logique de cet argument."]
["LOGIQUE","OU","OR","Renvoie VRAI si un des arguments est VRAI."]
["LOGIQUE","OUX","XOR","Renvoie un OU exclusif logique de tous les arguments (2013)."]
["LOGIQUE","SI","IF","Spécifie un test logique à effectuer."]
["LOGIQUE","SI.NON.DISP","IFNA","Renvoie la valeur que vous spécifiez si l'expression est résolue à #N/A ; autrement, renvoie le résultat de l'expression (2013)."]
["LOGIQUE","SIERREUR","IFERROR","Renvoie une valeur que vous spécifiez si une formule génère une erreur ; sinon, elle renvoie le résultat de la formule."]
["LOGIQUE",true,"TRUE","Renvoie la valeur logique VRAI."]
["INFORMATIONS","CELLULE","CELL","Renvoie des informations sur la mise en forme, l'emplacement et le contenu d'une cellule."]
["INFORMATIONS","EST.IMPAIR","ISODD","Renvoie VRAI si le chiffre est impair."]
["INFORMATIONS","EST.PAIR","ISEVEN","Renvoie VRAI si le chiffre est pair."]
["INFORMATIONS","ESTERR","ISERR","Renvoie VRAI si l'argument valeur fait référence à une valeur d'erreur, sauf #N/A."]
["INFORMATIONS","ESTERREUR","ISERROR","Renvoie VRAI si l'argument valeur fait référence à une valeur d'erreur."]
["INFORMATIONS","ESTFORMULE","ISFORMULA","Renvoie VRAI s'il existe une référence à une cellule qui contient une formule (2013)."]
["INFORMATIONS","ESTLOGIQUE","ISLOGICAL","Renvoie VRAI si l'argument valeur fait référence à une valeur logique."]
["INFORMATIONS","ESTNA","ISNA","Renvoie VRAI si l'argument valeur fait référence à la valeur d'erreur #N/A."]
["INFORMATIONS","ESTNONTEXTE","ISNONTEXT","Renvoie VRAI si l'argument valeur ne se présente pas sous forme de texte."]
["INFORMATIONS","ESTNUM","ISNUMBER","Renvoie VRAI si l'argument valeur représente un nombre."]
["INFORMATIONS","ESTREF","ISREF","Renvoie VRAI si l'argument valeur est une référence."]
["INFORMATIONS","ESTTEXTE","ISTEXT","Renvoie VRAI si l'argument valeur se présente sous forme de texte."]
["INFORMATIONS","ESTVIDE","ISBLANK","Renvoie VRAI si l'argument valeur est vide."]
["INFORMATIONS","FEUILLE","SHEET","Renvoie le numéro de feuille de la feuille référencée (2013)."]
["INFORMATIONS","FEUILLES","SHEETS","Renvoie le nombre de feuilles dans une référence (2013)."]
["INFORMATIONS","INFORMATIONS","INFO","Renvoie des informations sur l'environnement d'exploitation actuel."]
["INFORMATIONS","N","N","Renvoie une valeur convertie en nombre."]
["INFORMATIONS","NA","NA","Renvoie la valeur d'erreur #N/A."]
["INFORMATIONS","TYPE","TYPE","Renvoie un nombre indiquant le type de données d'une valeur."]
["INFORMATIONS","TYPE.ERREUR","ERROR.TYPE","Renvoie un nombre correspondant à un type d'erreur."]
["INGENIERIE","BESSELI","BESSELI","Renvoie la fonction Bessel modifiée In(x)."]
["INGENIERIE","BESSELJ","BESSELJ","Renvoie la fonction Bessel Jn(x)."]
["INGENIERIE","BESSELK","BESSELK","Renvoie la fonction Bessel modifiée Kn(x)."]
["INGENIERIE","BESSELY","BESSELY","Renvoie la fonction Bessel Yn(x)."]
["INGENIERIE","BINDEC","BIN2DEC","Convertit un nombre binaire en nombre décimal."]
["INGENIERIE","BINHEX","BIN2HEX","Convertit un nombre binaire en nombre hexadécimal."]
["INGENIERIE","BINOCT","BIN2OCT","Convertit un nombre binaire en nombre octal."]
["INGENIERIE","BITDECALD","BITRSHIFT","Renvoie un numéro de valeur décalé vers la droite de montant_décalage bits (2013)."]
["INGENIERIE","BITDECALG","BITLSHIFT","Renvoie un numéro de valeur décalé vers la gauche de montant_décalage bits (2013)."]
["INGENIERIE","BITET","BITAND","Renvoie un ET binaire de deux nombres (2013)."]
["INGENIERIE","BITOU","BITOR","Renvoie un OU binaire de 2 nombres (2013)."]
["INGENIERIE","BITOUEXCLUSIF","BITXOR","Renvoie un OU exclusif binaire de 2 nombres (2013)."]
["INGENIERIE","COMPLEXE","COMPLEX","Convertit des coefficients réel et imaginaire en un nombre complexe."]
["INGENIERIE","COMPLEXE.ARGUMENT","IMARGUMENT","Renvoie l'argument thêta, un angle exprimé en radians."]
["INGENIERIE","COMPLEXE.CONJUGUE","IMCONJUGATE","Renvoie le nombre complexe conjugué d'un nombre complexe."]
["INGENIERIE","COMPLEXE.COS","IMCOS","Renvoie le cosinus d'un nombre complexe."]
["INGENIERIE","COMPLEXE.COSH","IMCOSH","Renvoie le cosinus hyperbolique d'un nombre complexe (2013)."]
["INGENIERIE","COMPLEXE.COT","IMCOT","Renvoie la cotangente d'un nombre complexe (2013)."]
["INGENIERIE","COMPLEXE.CSC","IMCSC","Renvoie la cosécante d'un nombre complexe (2013)."]
["INGENIERIE","COMPLEXE.CSCH","IMCSCH","Renvoie la cosécante hyperbolique d'un nombre complexe (2013)."]
["INGENIERIE","COMPLEXE.DIFFERENCE","IMSUB","Renvoie la différence entre deux nombres complexes."]
["INGENIERIE","COMPLEXE.DIV","IMDIV","Renvoie le quotient de deux nombres complexes."]
["INGENIERIE","COMPLEXE.EXP","IMEXP","Renvoie la fonction exponentielle d'un nombre complexe."]
["INGENIERIE","COMPLEXE.IMAGINAIRE","IMAGINARY","Renvoie le coefficient imaginaire d'un nombre complexe."]
["INGENIERIE","COMPLEXE.LN","IMLN","Renvoie le logarithme népérien d'un nombre complexe."]
["INGENIERIE","COMPLEXE.LOG10","IMLOG10","Calcule le logarithme en base 10 d'un nombre complexe."]
["INGENIERIE","COMPLEXE.LOG2","IMLOG2","Calcule le logarithme en base 2 d'un nombre complexe."]
["INGENIERIE","COMPLEXE.MODULE","IMABS","Renvoie la valeur absolue (module) d'un nombre complexe."]
["INGENIERIE","COMPLEXE.PRODUIT","IMPRODUCT","Renvoie le produit de plusieurs nombres complexes."]
["INGENIERIE","COMPLEXE.PUISSANCE","IMPOWER","Renvoie un nombre complexe élevé à une puissance entière."]
["INGENIERIE","COMPLEXE.RACINE","IMSQRT","Renvoie la racine carrée d'un nombre complexe."]
["INGENIERIE","COMPLEXE.REEL","IMREAL","Renvoie le coefficient réel d'un nombre complexe."]
["INGENIERIE","COMPLEXE.SEC","IMSEC","Renvoie la sécante d'un nombre complexe (2013)."]
["INGENIERIE","COMPLEXE.SECH","IMSECH","Renvoie la sécante hyperbolique d'un nombre complexe (2013)."]
["INGENIERIE","COMPLEXE.SIN","IMSIN","Renvoie le sinus d'un nombre complexe."]
["INGENIERIE","COMPLEXE.SINH","IMSINH","Renvoie le sinus hyperbolique d'un nombre complexe (2013)."]
["INGENIERIE","COMPLEXE.SOMME","IMSUM","Renvoie la somme de plusieurs nombres complexes."]
["INGENIERIE","COMPLEXE.TAN","IMTAN","Renvoie la tangente d'un nombre complexe (2013)."]
["INGENIERIE","CONVERT","CONVERT","Convertit un nombre d'une unité de mesure à une autre."]
["INGENIERIE","DECBIN","DEC2BIN","Convertit un nombre décimal en nombre binaire."]
["INGENIERIE","DECHEX","DEC2HEX","Convertit un nombre décimal en nombre hexadécimal."]
["INGENIERIE","DECOCT","DEC2OCT","Convertit un nombre décimal en nombre octal."]
["INGENIERIE","DELTA","DELTA","Teste l'égalité de deux nombres."]
["INGENIERIE","ERF","ERF","Renvoie la valeur de la fonction d'erreur."]
["INGENIERIE","ERF.PRECIS","ERF.PRECISE","Renvoie la valeur de la fonction d'erreur."]
["INGENIERIE","ERFC","ERFC","Renvoie la valeur de la fonction d'erreur complémentaire."]
["INGENIERIE","ERFC.PRECIS","ERFC.PRECISE","Renvoie la fonction d'erreur complémentaire intégrée entre x et l'infini."]
["INGENIERIE","HEXBIN","HEX2BIN","Convertit un nombre hexadécimal en nombre binaire."]
["INGENIERIE","HEXDEC","HEX2DEC","Convertit un nombre hexadécimal en nombre décimal."]
["INGENIERIE","HEXOCT","HEX2OCT","Convertit un nombre hexadécimal en nombre octal."]
["INGENIERIE","OCTBIN","OCT2BIN","Convertit un nombre octal en nombre binaire."]
["INGENIERIE","OCTDEC","OCT2DEC","Convertit un nombre octal en nombre décimal."]
["INGENIERIE","OCTHEX","OCT2HEX","Convertit un nombre octal en nombre hexadécimal."]
["INGENIERIE","SUP.SEUIL","GESTEP","Teste si un nombre est supérieur à une valeur de seuil."]
["CUBE","JEUCUBE","CUBESET","Définit un ensemble calculé de membres ou de tuples en envoyant une expression définie au cube sur le serveur qui crée l'ensemble et le renvoie à Microsoft Office Excel."]
["CUBE","MEMBRECUBE","CUBEMEMBER","Renvoie un membre ou un tuple dans une hiérarchie de cubes. Utilisez cette fonction pour valider l'existence du membre ou du tuple dans le cube."]
["CUBE","MEMBREKPICUBE","CUBEKPIMEMBER","Renvoie un nom, une propriété et une mesure d'indicateur de performance clé et affiche le nom et la propriété dans la cellule. Un indicateur de performance clé est une mesure quantifiable, telle que la marge bénéficiaire brute mensuelle ou la rotation trimestrielle du personnel, utilisée pour évaluer les performances d'une entreprise."]
["CUBE","NBJEUCUBE","CUBESETCOUNT","Renvoie le nombre d'éléments dans un jeu."]
["CUBE","PROPRIETEMEMBRECUBE","CUBEMEMBERPROPERTY","Renvoie la valeur d'une propriété de membre du cube. Utilisez cette fonction pour valider l'existence d'un nom de membre dans le cube et pour renvoyer la propriété spécifiée pour ce membre."]
["CUBE","RANGMEMBRECUBE","CUBERANKEDMEMBER","Renvoie le nième membre ou le membre placé à un certain rang dans un ensemble. Utilisez cette fonction pour renvoyer un ou plusieurs éléments d'un ensemble, tels que les meilleurs vendeurs ou les 10 meilleurs étudiants."]
["CUBE","VALEURCUBE","CUBEVALUE","Renvoie une valeur d'agrégation issue d'un cube."]
["STATS OLD","BETA.INVERSE","BETAINV","Renvoie l'inverse de la fonction de distribution cumulée pour une distribution bêta spécifiée."]
["STATS OLD","CENTILE","PERCENTILE","Renvoie le k-ième centile des valeurs d'une plage."]
["STATS OLD","COVARIANCE","COVAR","Renvoie la covariance, moyenne des produits des écarts pour chaque série d'observations."]
["STATS OLD","CRITERE.LOI.BINOMIALE","CRITBINOM","Renvoie la plus petite valeur pour laquelle la distribution binomiale cumulée est inférieure ou égale à une valeur de critère."]
["STATS OLD","ECARTYPE","STDEV","Evalue l'écart type d'une population en se basant sur un échantillon de cette population."]
["STATS OLD","ECARTYPEP","STDEVP","Calcule l'écart type d'une population à partir de la population entière."]
["STATS OLD","INTERVALLE.CONFIANCE","CONFIDENCE","Renvoie l'intervalle de confiance pour une moyenne de population."]
["STATS OLD","KHIDEUX.INVERSE","CHIINV","Renvoie l'inverse de la probabilité unilatérale de la distribution khi-deux."]
["STATS OLD","LOI.BETA","BETADIST","Renvoie la fonction de distribution cumulée."]
["STATS OLD","LOI.BINOMIALE","BINOMDIST","Renvoie la probabilité d'une variable aléatoire discrète suivant la loi binomiale."]
["STATS OLD","LOI.BINOMIALE.NEG","NEGBINOMDIST","Renvoie la probabilité d'une variable aléatoire discrète suivant une loi binomiale négative."]
["STATS OLD","LOI.EXPONENTIELLE","EXPONDIST","Renvoie la distribution exponentielle."]
["STATS OLD","LOI.F","FDIST","Renvoie la distribution de probabilité F."]
["STATS OLD","LOI.GAMMA","GAMMADIST","Renvoie la la probabilité d'une variable aléatoire suivant une loi Gamma."]
["STATS OLD","LOI.GAMMA.INVERSE","GAMMAINV","Renvoie, pour une probabilité donnée, la valeur d'une variable aléatoire suivant une loi Gamma."]
["STATS OLD","LOI.HYPERGEOMETRIQUE","HYPGEOMDIST","Renvoie la probabilité d'une variable aléatoire discrète suivant une loi hypergéométrique."]
["STATS OLD","LOI.KHIDEUX","CHIDIST","Renvoie la probabilité unilatérale de la distribution khi-deux."]
["STATS OLD","LOI.LOGNORMALE","LOGNORMDIST","Renvoie la probabilité d'une variable aléatoire continue suivant une loi lognormale."]
["STATS OLD","LOI.LOGNORMALE.INVERSE","LOGINV","Renvoie l'inverse de la fonction de distribution suivant une loi lognormale cumulée."]
["STATS OLD","LOI.NORMALE","NORMDIST","Renvoie la probabilité d'une variable aléatoire continue suivant une loi normale."]
["STATS OLD","LOI.NORMALE.INVERSE","NORMINV","Renvoie, pour une probabilité donnée, la valeur d'une variable aléatoire suivant une loi normale."]
["STATS OLD","LOI.NORMALE.STANDARD","NORMSDIST","Renvoie la probabilité d'une variable aléatoire continue suivant une loi normale standard."]
["STATS OLD","LOI.NORMALE.STANDARD.INVERSE","NORMSINV","Renvoie l'inverse de la distribution cumulée normale standard."]
["STATS OLD","LOI.POISSON","POISSON","Renvoie la probabilité d'une variable aléatoire suivant une loi de Poisson."]
["STATS OLD","LOI.STUDENT","TDIST","Renvoie la probabilité d'une variable aléatoire suivant la loi T de Student."]
["STATS OLD","LOI.STUDENT.INVERSE","TINV","Renvoie, pour une probabilité donnée, la valeur d'une variable aléatoire suivant la loi T de Student."]
["STATS OLD","LOI.WEIBULL","WEIBULL","Calcule la variance d'une population en se basant sur la population entière, nombres, texte et valeurs logiques inclus."]
["STATS OLD","MODE","MODE","Renvoie la valeur la plus courante d'une série de données."]
["STATS OLD","QUARTILE","QUARTILE","Renvoie le quartile d'une série de données."]
["STATS OLD","RANG","RANK","Renvoie le rang d'un nombre contenu dans une liste."]
["STATS OLD","RANG.POURCENTAGE","PERCENTRANK","Renvoie le rang en pourcentage d'une valeur d'une série de données."]
["STATS OLD","TEST.F","FTEST","Renvoie le résultat d'un test F."]
["STATS OLD","TEST.KHIDEUX","CHITEST","Renvoie le test d'indépendance."]
["STATS OLD","TEST.STUDENT","TTEST","Renvoie la probabilité associée à un test T de Student."]
["STATS OLD","TEST.Z","ZTEST","Renvoie la valeur de probabilité unilatérale d'un test Z."]
["STATS OLD","VAR","VAR","Calcule la variance sur la base d'un échantillon."]
["STATS OLD","VAR.P","VARP","Calcule la variance sur la base de l'ensemble de la population."]
["WEB","FILTRE.XML","FILTERXML","Renvoie des données spécifiques à partir du contenu XML à l'aide du XPath spécifié (2013)."]
["WEB","SERVICEWEB","WEBSERVICE","Renvoie des données à partir d'un service web (2013)."]
["WEB","URLENCODAGE","ENCODEURL","Renvoie une chaîne codée au format URL (2013)."]

{"sheet":"Raccourcis","index":11,"n_rows":65,"n_cols":5,"rows_kept":65,"cut":false,"hidden":false,"merged":[]}
["RACCOURCIS EXCEL"]
[null,null,null,"Les touches de raccourci par ordre alphabétique des fonctions"]
["F1","Affichage de l'aide en ligne ou du Compagnon Office",null,"Activation de la barre de menus","F10"]
["F2","Modification de la cellule active",null,"Affichage de la boîte de dialogue MACRO","ALT+F8"]
["F3","Collage d'un nom dans une formule",null,"Affichage de la boîte de dialogue Rechercher","MAJ+F5"]
["F4","Répétition de la dernière action",null,"Affichage de l'aide en ligne ou du Compagnon Office","F1"]
["F5","Atteindre",null,"Affichage de Visual Basic Editor","ALT+F11"]
["F6","Déplacement vers le volet suivant",null,"Affichage d'un menu contextuel","MAJ+F10"]
["F7","Commande Orthographe",null,"Agrandissement ou restauration de la fenêtre du classeur","CTRL+F10"]
["F8","Extension d'une sélection ",null,"Ajout à la sélection","MAJ+F8"]
["F9","Calcul de l'ensemble des feuilles de tous les classeurs ouverts",null,"Annuler la dernière action","CTRL+Z"]
["F10","Activation de la barre de menus",null,"Atteindre","F5"]
["F11","Création d'un graphique",null,"Atteindre la première colonne d'un tableau (ou de la feuille)","CTRL+<-"]
["F12","Commande Enregistrer sous",null,"Atteindre la dernière colonne d'un tableau (ou de la feuille)","CTRL+->"]
["MAJ+F1","Qu'est-ce que c'est ?",null,"Atteindre la première ligne d'un tableau (ou de la feuille)","CTRL+î"]
["MAJ+F2","Modification d'un commentaire de cellule",null,"Atteindre la première ligne d'un tableau (ou de la feuille)","CTRL+i"]
["MAJ+F3","Collage d'une fonction dans une formule",null,"Atteindre la cellule A1","CTRL+home"]
["MAJ+F4","Répétition de la dernière commande Rechercher (Suivant)",null,"Calcul de la feuille active","MAJ+F9"]
["MAJ+F5","Affichage de la boîte de dialogue Rechercher",null,"Calcul de l'ensemble des feuilles de tous les classeurs ouverts","F9"]
["MAJ+F6","Déplacement vers le volet précédent",null,"Collage d'un nom dans une formule","F3"]
["MAJ+F8","Ajout à la sélection",null,"Collage d'une fonction dans une formule","MAJ+F3"]
["MAJ+F9","Calcul de la feuille active",null,"Coller","CTRL+V"]
["MAJ+F10","Affichage d'un menu contextuel",null,"Commande Enregistrer","CTRL+S"]
["MAJ+F11","Insertion d'une nouvelle feuille de calcul",null,"Commande Enregistrer","MAJ+F12"]
["MAJ+F12","Commande Enregistrer",null,"Commande Enregistrer","ALT+MAJ+F2"]
["CTRL+F3","Définition d'un nom",null,"Commande Enregistrer sous","F12"]
["CTRL+F4","Fermeture de la fenêtre",null,"Commande Enregistrer sous","ALT+F2"]
["CTRL+F5","Restauration de la taille de la fenêtre",null,"Commande Imprimer","CTRL+MAJ+F12"]
["CTRL+F6","Déplacement vers la fenêtre suivante du classeur",null,"Commande Orthographe","F7"]
["CTRL+F7","Déplacement de la fenêtre",null,"Commande Ouvrir","CTRL+F12"]
["CTRL+F8","Redimensionnement de la fenêtre",null,"Copier","CTRL+C"]
["CTRL+F9","Réduction du classeur",null,"Couper","CTRL+X"]
["CTRL+F10","Agrandissement ou restauration de la fenêtre du classeur",null,"Création de noms à partir des étiquettes de ligne et de colonne","CTRL+MAJ+F3"]
["CTRL+F11","Insertion d'une feuille macro Microsoft Excel 4.0",null,"Création d'un graphique","F11"]
["CTRL+F12","Commande Ouvrir",null,"Définition d'un nom","CTRL+F3"]
["CTRL+'","Efface toutes les bordures de la plage sélectionnée",null,"Déplacement de la fenêtre","CTRL+F7"]
["CTRL+TAB","Passer d'un classeur ouvert à un autre",null,"Déplacement vers la fenêtre précédente du classeur","CTRL+MAJ+F6"]
["CTRL+PGAR","Passer rapidement à la feuille précédente du classeur",null,"Déplacement vers la fenêtre suivante du classeur","CTRL+F6"]
["CTRL+PGAV","Passer rapidement à la feuille suivante du classeur",null,"Déplacement vers le volet précédent","MAJ+F6"]
["CTRL+<-","Atteindre la première colonne d'un tableau (ou de la feuille)",null,"Déplacement vers le volet suivant","F6"]
["CTRL+->","Atteindre la dernière colonne d'un tableau (ou de la feuille)",null,"Effacer les bordures d'une palge sélectionnée","CTRL+'"]
["CTRL+î","Atteindre la dernière ligne d'un tableau (ou de la feuille)",null,"Extension d'une sélection ","F8"]
["CTRL+i","Atteindre la dernière ligne d'un tableau (ou de la feuille)",null,"Fermeture de la fenêtre","CTRL+F4"]
["CTRL+home","Atteindre la cellule A1",null,"Imprimer","CTRL+P"]
["CTRL+C","Copier",null,"Insertion d'une feuille graphique","ALT+F1"]
["CTRL+F","Rechercher",null,"Insertion d'une feuille macro Microsoft Excel 4.0","CTRL+F11"]
["CTRL+H","Remplacer",null,"Insertion d'une nouvelle feuille de calcul","MAJ+F11"]
["CTRL+K","Lien hypertexte",null,"Insertion d'une nouvelle feuille de calcul","ALT+MAJ+F1"]
["CTRL+N","Nouveau classeur",null,"Modification de la cellule active","F2"]
["CTRL+O","Ouvrir un fichier",null,"Modification d'un commentaire de cellule","MAJ+F2"]
["CTRL+P","Imprimer",null,"Nouveau classeur","CTRL+N"]
["CTRL+S","Enregristrer",null,"Ouvrir","CTRL+O"]
["CTRL+T","Atteindre",null,"Passer à un autre classeur ouvert","CTRL+TAB"]
["CTRL+V","Coller",null,"Passer à la feuille précédente du classeur","CTRL+PGAR"]
["CTRL+X","Couper",null,"Passer à la feuille précédente du classeur","CTRL+PGAV"]
["CTRL+Y","Rétablir l'action précédemment annulée",null,"Qu'est-ce que c'est ?","MAJ+F1"]
["CTRL+Z","Annuler la dernière action",null,"Quitter","ALT+F4"]
["ALT+F1","Insertion d'une feuille graphique",null,"Rechercher","CTRL+F"]
["ALT+F2","Commande Enregistrer sous",null,"Redimensionnement de la fenêtre","CTRL+F8"]
["ALT+F4","Quitter",null,"Réduction du classeur","CTRL+F9"]
["ALT+F8","Affichage de la boîte de dialogue MACRO",null,"Remplacer","CTRL+H"]
["ALT+F11","Affichage de Visual Basic Editor",null,"Répétition de la dernière action","F4"]
["ALT+MAJ+F1","Insertion d'une nouvelle feuille de calcul",null,"Répétition de la dernière commande Rechercher (Suivant)","MAJ+F4"]
["ALT+MAJ+F2","Commande Enregistrer",null,"Restauration de la taille de la fenêtre","CTRL+F5"]
[null,null,null,"Rétablir l'action annulée","CTRL+Y"]